Workbook

Sheet Arkusz1
A2: Tabela 1
A3: Kukurydza na kiszonkę – grupa wczesna. Doświadczenia porejestrowe 2025. Plon ogólny świeżej masy, dt z ha
A5: Stacje/Odmiany | C5: Chrząstowo | D5: % wzorca | E5: Cicibór | F5: % wzorca | G5: Głębokie | H5: % wzorca | I5: Głodowo | J5: % wzorca | K5: Kawęczyn | L5: % wzorca | M5: Kościelna Wieś | N5: % wzorca | O5: Krzyżewo | P5: % wzorca | Q5: Łyski | R5: % wzorca | S5: Marianowo | T5: % wzorca | U5: Masłowice | V5: % wzorca | W5: Radostowo | X5: % wzorca | Y5: Radzików | Z5: % wzorca | AA5: Rarwino | AB5: % wzorca | AC5: Rychliki | AD5: % wzorca | AE5: Słupia | AF5: % wzorca | AG5: Smolice | AH5: % wzorca | AI5: Sulejów | AJ5: % wzorca | AK5: Śrem | AL5: % wzorca | AM5: Tomaszów Bol. | AN5: % wzorca | AO5: Węgrzce | AP5: % wzorca | AQ5: Wrócikowo | AR5: % wzorca | AS5: średnia | AT5: % Wzorca
A7: wzorzec: | C7: 637 | E7: 533 | G7: 531 | I7: 618 | K7: 360 | M7: 516 | O7: 697 | Q7: 509 | S7: 634 | U7: 440 | W7: 654 | Y7: 379 | AA7: 486 | AC7: 475 | AG7: 383 | AI7: 561 | AK7: 610 | AM7: 329 | AO7: 621 | AQ7: 688 | AS7: 533
A9: 1 | B9: Herculio | C9: 634 | D9: =C9*100/637 -> 99.52904239 | E9: 511 | F9: =E9*100/533 -> 95.87242026 | G9: 497 | H9: =G9*100/531 -> 93.59698682 | I9: 594 | J9: =I9*100/618 -> 96.11650485 | K9: 342 | L9: =K9*100/360 -> 95 | M9: 522 | N9: =M9*100/516 -> 101.1627907 | O9: 730 | P9: =O9*100/697 -> 104.7345768 | Q9: 519 | R9: =Q9*100/509 -> 101.9646365 | S9: 641 | T9: =S9*100/634 -> 101.1041009 | U9: 411 | V9: =U9*100/440 -> 93.40909091 | W9: 603 | X9: =W9*100/654 -> 92.20183486 | Y9: 378 | Z9: =Y9*100/379 -> 99.73614776 | AA9: 492 | AB9: =AA9*100/486 -> 101.2345679 | AC9: 467 | AD9: =AC9*100/475 -> 98.31578947 | AE9: - | AF9: - | AG9: 370 | AH9: =AG9*100/383 -> 96.60574413 | AI9: 585 | AJ9: =AI9*100/561 -> 104.2780749 | AK9: 622 | AL9: =AK9*100/610 -> 101.9672131 | AM9: 376 | AN9: =AM9*100/329 -> 114.2857143 | AO9: 656 | AP9: =AO9*100/621 -> 105.6360709 | AQ9: 691 | AR9: =AQ9*100/688 -> 100.4360465 | AS9: 532 | AT9: 100
A10: 2 | B10: Keltico | C10: 631 | D10: =C10*100/637 -> 99.05808477 | E10: 528 | F10: =E10*100/533 -> 99.0619137 | G10: 508 | H10: =G10*100/531 -> 95.66854991 | I10: 611 | J10: =I10*100/618 -> 98.86731392 | K10: 369 | L10: =K10*100/360 -> 102.5 | M10: 488 | N10: =M10*100/516 -> 94.57364341 | O10: 710 | P10: =O10*100/697 -> 101.8651363 | Q10: 538 | R10: =Q10*100/509 -> 105.697446 | S10: 575 | T10: =S10*100/634 -> 90.69400631 | U10: 440 | V10: =U10*100/440 -> 100 | W10: 618 | X10: =W10*100/654 -> 94.49541284 | Y10: 388 | Z10: =Y10*100/379 -> 102.3746702 | AA10: 465 | AB10: =AA10*100/486 -> 95.67901235 | AC10: 508 | AD10: =AC10*100/475 -> 106.9473684 | AE10: - | AF10: - | AG10: 399 | AH10: =AG10*100/383 -> 104.1775457 | AI10: 517 | AJ10: =AI10*100/561 -> 92.15686275 | AK10: 578 | AL10: =AK10*100/610 -> 94.75409836 | AM10: 305 | AN10: =AM10*100/329 -> 92.70516717 | AO10: 605 | AP10: =AO10*100/621 -> 97.42351047 | AQ10: 706 | AR10: =AQ10*100/688 -> 102.6162791 | AS10: 524 | AT10: 98
A11: 3 | B11: KWS Kalpo | C11: 673 | D11: 105.6514914 | E11: 539 | F11: 101.1257036 | G11: 568 | H11: 106.9679849 | I11: 630 | J11: 101.9417476 | K11: 397 | L11: 110.2777778 | M11: 549 | N11: 106.3953488 | O11: 708 | P11: 101.5781923 | Q11: 512 | R11: 100.589391 | S11: 687 | T11: 108.3596215 | U11: 404 | V11: 91.81818182 | W11: 689 | X11: 105.351682 | Y11: 376 | Z11: 99.20844327 | AA11: 520 | AB11: 106.9958848 | AC11: 484 | AD11: 101.8947368 | AE11: - | AF11: - | AG11: 411 | AH11: 107.310705 | AI11: 571 | AJ11: 101.7825312 | AK11: 647 | AL11: 106.0655738 | AM11: 360 | AN11: 109.4224924 | AO11: 595 | AP11: 95.81320451 | AQ11: 687 | AR11: 99.85465116 | AS11: 550 | AT11: 103
A12: 4 | B12: Qualito | C12: 594 | D12: 93.24960754 | E12: 602 | F12: 112.945591 | G12: 524 | H12: 98.68173258 | I12: 573 | J12: 92.7184466 | K12: 327 | L12: 90.83333333 | M12: 506 | N12: 98.0620155 | O12: 648 | P12: 92.96987088 | Q12: 471 | R12: 92.53438114 | S12: 617 | T12: 97.31861199 | U12: 417 | V12: 94.77272727 | W12: 657 | X12: 100.4587156 | Y12: 375 | Z12: 98.94459103 | AA12: 526 | AB12: 108.2304527 | AC12: 433 | AD12: 91.15789474 | AE12: - | AF12: - | AG12: 333 | AH12: 86.94516971 | AI12: 564 | AJ12: 100.5347594 | AK12: 580 | AL12: 95.08196721 | AM12: 292 | AN12: 88.75379939 | AO12: 611 | AP12: 98.38969404 | AQ12: 631 | AR12: 91.71511628 | AS12: 514 | AT12: 96
A13: 5 | B13: SM Manoso | C13: 669 | D13: 105.0235479 | E13: 510 | F13: 95.684803 | G13: 543 | H13: 102.259887 | I13: 675 | J13: 109.223301 | K13: 376 | L13: 104.4444444 | M13: 529 | N13: 102.5193798 | O13: 733 | P13: 105.1649928 | Q13: 520 | R13: 102.1611002 | S13: 657 | T13: 103.6277603 | U13: 506 | V13: 115 | W13: 710 | X13: 108.5626911 | Y13: 435 | Z13: 114.7757256 | AA13: 455 | AB13: 93.62139918 | AC13: 527 | AD13: 110.9473684 | AE13: - | AF13: - | AG13: 429 | AH13: 112.0104439 | AI13: 598 | AJ13: 106.5953654 | AK13: 646 | AL13: 105.9016393 | AM13: 291 | AN13: 88.44984802 | AO13: 656 | AP13: 105.6360709 | AQ13: 731 | AR13: 106.25 | AS13: 560 | AT13: 105
A14: 6 | B14: SM Mieszko | C14: 620 | D14: 97.33124019 | E14: 508 | F14: 95.30956848 | G14: 544 | H14: 102.4482109 | I14: 623 | J14: 100.8090615 | K14: 347 | L14: 96.38888889 | M14: 501 | N14: 97.09302326 | O14: 656 | P14: 94.11764706 | Q14: 496 | R14: 97.4459725 | S14: 627 | T14: 98.89589905 | U14: 463 | V14: 105.2272727 | W14: 648 | X14: 99.08256881 | Y14: 319 | Z14: 84.16886544 | AA14: 460 | AB14: 94.65020576 | AC14: 428 | AD14: 90.10526316 | AE14: - | AF14: - | AG14: 356 | AH14: 92.95039164 | AI14: 529 | AJ14: 94.29590018 | AK14: 589 | AL14: 96.55737705 | AM14: 351 | AN14: 106.6869301 | AO14: 602 | AP14: 96.94041868 | AQ14: 681 | AR14: 98.98255814 | AS14: 517 | AT14: 97
B16: NIR dt/ha | C16: 43.5 | E16: 37.1 | G16: 34.2 | I16: 10.6 | K16: 23.6 | M16: 32.1 | O16: 31.8 | Q16: 79.5 | S16: 56.3 | U16: 25.8 | W16: 20.3 | Y16: 53.1 | AA16: 30.9 | AC16: 68.7 | AE16: - | AF16: - | AG16: 26.6 | AI16: 40 | AK16: 35.5 | AM16: 36 | AO16: 74.2 | AQ16: 32.5 | AS16: 18
B17: NIR, % | C17: 6.8 | E17: 7.2 | G17: 6.4 | I17: 1.7 | K17: 6.8 | M17: 6.2 | O17: 4.7 | Q17: 15.6 | S17: 9.6 | U17: 5.6 | W17: 3.2 | Y17: 14.2 | AA17: 6.3 | AC17: 14.5 | AE17: - | AF17: - | AG17: 7.2 | AI17: 7.4 | AK17: 6 | AM17: 10.9 | AO17: 12 | AQ17: 5 | AS17: 3.4
B18: Data zbioru | C18: 2025-09-15 | E18: 2025-09-09 | G18: 2025-08-28 | I18: 2025-09-22 | M18: 2025-08-29 | O18: 2025-09-10 | Q18: 2025-09-17 | S18: 2025-09-09 | U18: 2025-09-23 | W18: 2025-09-24 | Y18: 2025-09-16 | AA18: 2025-09-18 | AC18: 2025-09-22 | AK18: 2025-09-04 | AM18: 2025-08-25 | AO18: 2025-09-04
A21: Wzorzec tworzą średnie wyniki odmian grupie.
A22: Nie włączono do syntezy: Słupia - dyskwalifikacja polowa
A26: Tabela 2
A27: Kukurydza na kiszonkę – grupa wczesna. Doświadczenia porejestrowe 2025. Plon ogólny suchej masy, dt z ha
A29: Stacje/Odmiany | C29: Chrząstowo | D29: % wzorca | E29: Cicibór | F29: % wzorca | G29: Głębokie | H29: % wzorca | I29: Głodowo | J29: % wzorca | K29: Kawęczyn | L29: % wzorca | M29: Kościelna Wieś | N29: % wzorca | O29: Krzyżewo | P29: % wzorca | Q29: Łyski | R29: % wzorca | S29: Marianowo | T29: % wzorca | U29: Masłowice | V29: % wzorca | W29: Radostowo | X29: % wzorca | Y29: Radzików | Z29: % wzorca | AA29: Rarwino | AB29: % wzorca | AC29: Rychliki | AD29: % wzorca | AE29: Słupia | AF29: % wzorca | AG29: Smolice | AH29: % wzorca | AI29: Sulejów | AJ29: % wzorca | AK29: Śrem | AL29: % wzorca | AM29: Tomaszów Bol. | AN29: % wzorca | AO29: Węgrzce | AP29: % wzorca | AQ29: Wrócikowo | AR29: % wzorca | AS29: średnia | AT29: % wzorca
A31: wzorzec: | C31: 199 | E31: 193.2 | G31: 168.3 | I31: 200.5 | K31: 147.1 | M31: 171.2 | O31: 242.6 | Q31: 164.8 | S31: 184.5 | U31: 158.6 | W31: 192.9 | Y31: 160.9 | AA31: 167.7 | AC31: 147.8 | AG31: 123.2 | AI31: 183.2 | AK31: 188.9 | AM31: 116.7 | AO31: 202.5 | AQ31: 198.5 | AS31: 175.6
A33: 1 | B33: Herculio | C33: 195.3 | D33: =C33*100/199 -> 98.14070352 | E33: 167.3 | F33: =E33*100/193.2 -> 86.5942029 | G33: 171.2 | H33: =G33*100/168.3 -> 101.7231135 | I33: 194.6 | J33: =I33*100/200.5 -> 97.05735661 | K33: 148.4 | L33: =K33*100/147.1 -> 100.8837525 | M33: 175.5 | N33: =M33*100/171.2 -> 102.5116822 | O33: 265 | P33: =O33*100/242.6 -> 109.2333059 | Q33: 160.9 | R33: =Q33*100/164.8 -> 97.63349515 | S33: 197.8 | T33: =S33*100/184.5 -> 107.2086721 | U33: 148 | V33: =U33*100/158.6 -> 93.31651955 | W33: 189.8 | X33: =W33*100/192.9 -> 98.39294971 | Y33: 173.2 | Z33: =Y33*100/160.9 -> 107.6444997 | AA33: 183.4 | AB33: =AA33*100/167.7 -> 109.3619559 | AC33: 134.7 | AD33: =AC33*100/147.8 -> 91.13667118 | AE33: - | AF33: - | AG33: 128.4 | AH33: =AG33*100/123.2 -> 104.2207792 | AI33: 196.4 | AJ33: =AI33*100/183.2 -> 107.2052402 | AK33: 197.4 | AL33: =AK33*100/188.9 -> 104.4997353 | AM33: 138.2 | AN33: =AM33*100/116.7 -> 118.4233076 | AO33: 214.2 | AP33: =AO33*100/202.5 -> 105.7777778 | AQ33: 202.6 | AR33: =AQ33*100/198.5 -> 102.0654912 | AS33: 179.1 | AT33: 102
A34: 2 | B34: Keltico | C34: 200.1 | D34: =C34*100/199 -> 100.5527638 | E34: 200.8 | F34: =E34*100/193.2 -> 103.9337474 | G34: 154.2 | H34: =G34*100/168.3 -> 91.62210339 | I34: 194 | J34: =I34*100/200.5 -> 96.75810474 | K34: 136.6 | L34: =K34*100/147.1 -> 92.86199864 | M34: 165.9 | N34: =M34*100/171.2 -> 96.90420561 | O34: 237 | P34: =O34*100/242.6 -> 97.69167354 | Q34: 168.9 | R34: =Q34*100/164.8 -> 102.4878641 | S34: 166.7 | T34: =S34*100/184.5 -> 90.35230352 | U34: 150.5 | V34: =U34*100/158.6 -> 94.89281211 | W34: 179.3 | X34: =W34*100/192.9 -> 92.94971488 | Y34: 154.5 | Z34: =Y34*100/160.9 -> 96.02237415 | AA34: 152.9 | AB34: =AA34*100/167.7 -> 91.17471676 | AC34: 157.5 | AD34: =AC34*100/147.8 -> 106.5629229 | AE34: - | AF34: - | AG34: 117.8 | AH34: =AG34*100/123.2 -> 95.61688312 | AI34: 175.7 | AJ34: =AI34*100/183.2 -> 95.90611354 | AK34: 172.3 | AL34: =AK34*100/188.9 -> 91.21228163 | AM34: 103.4 | AN34: =AM34*100/116.7 -> 88.60325621 | AO34: 189.7 | AP34: =AO34*100/202.5 -> 93.67901235 | AQ34: 193.5 | AR34: =AQ34*100/198.5 -> 97.48110831 | AS34: 168.6 | AT34: 96
A35: 3 | B35: KWS Kalpo | C35: 203.4 | D35: 102.2110553 | E35: 194.3 | F35: 100.5693582 | G35: 168.9 | H35: 100.3565062 | I35: 204.9 | J35: 102.1945137 | K35: 160.5 | L35: 109.1094494 | M35: 188.4 | N35: 110.046729 | O35: 259.5 | P35: 106.9661995 | Q35: 178.8 | R35: 108.4951456 | S35: 194.4 | T35: 105.3658537 | U35: 127.4 | V35: 80.32786885 | W35: 202.4 | X35: 104.9248315 | Y35: 160.4 | Z35: 99.68924798 | AA35: 174.4 | AB35: 103.9952296 | AC35: 157.8 | AD35: 106.7658999 | AE35: - | AF35: - | AG35: 131 | AH35: 106.3311688 | AI35: 192.6 | AJ35: 105.1310044 | AK35: 209.9 | AL35: 111.1169931 | AM35: 125.5 | AN35: 107.5407027 | AO35: 201.9 | AP35: 99.7037037 | AQ35: 196.5 | AR35: 98.99244332 | AS35: 181.6 | AT35: 103
A36: 4 | B36: Qualito | C36: 182.8 | D36: 91.85929648 | E36: 214.4 | F36: 110.9730849 | G36: 163.7 | H36: 97.2667855 | I36: 199.2 | J36: 99.35162095 | K36: 137.2 | L36: 93.26988443 | M36: 170.7 | N36: 99.70794393 | O36: 240.3 | P36: 99.05193735 | Q36: 155.6 | R36: 94.41747573 | S36: 191.1 | T36: 103.5772358 | U36: 168.3 | V36: 106.1160151 | W36: 202.5 | X36: 104.9766719 | Y36: 160.7 | Z36: 99.87569919 | AA36: 189.2 | AB36: 112.8205128 | AC36: 141.8 | AD36: 95.94046008 | AE36: - | AF36: - | AG36: 112.2 | AH36: 91.07142857 | AI36: 180.3 | AJ36: 98.41703057 | AK36: 182.2 | AL36: 96.45314981 | AM36: 107.9 | AN36: 92.45929734 | AO36: 194 | AP36: 95.80246914 | AQ36: 189.2 | AR36: 95.31486146 | AS36: 174.2 | AT36: 99
A37: 5 | B37: SM Manoso | C37: 212.8 | D37: 106.9346734 | E37: 190.4 | F37: 98.55072464 | G37: 173.6 | H37: 103.1491384 | I37: 220.7 | J37: 110.074813 | K37: 162.3 | L37: 110.3331067 | M37: 172.1 | N37: 100.5257009 | O37: 240.4 | P37: 99.09315746 | Q37: 165.2 | R37: 100.2427184 | S37: 183.7 | T37: 99.56639566 | U37: 195.4 | V37: 123.2030265 | W37: 195.8 | X37: 101.5033696 | Y37: 170.6 | Z37: 106.0285892 | AA37: 151 | AB37: 90.0417412 | AC37: 153.7 | AD37: 103.9918809 | AE37: - | AF37: - | AG37: 131.8 | AH37: 106.9805195 | AI37: 189.4 | AJ37: 103.3842795 | AK37: 186.1 | AL37: 98.51773425 | AM37: 103 | AN37: 88.260497 | AO37: 216.3 | AP37: 106.8148148 | AQ37: 209.1 | AR37: 105.3400504 | AS37: 181.2 | AT37: 103
A38: 6 | B38: SM Mieszko | C38: 199.7 | D38: 100.3517588 | E38: 191.8 | F38: 99.27536232 | G38: 178.5 | H38: 106.0606061 | I38: 189.5 | J38: 94.51371571 | K38: 137.3 | L38: 93.3378654 | M38: 154.5 | N38: 90.2453271 | O38: 213.4 | P38: 87.9637263 | Q38: 159.5 | R38: 96.78398058 | S38: 173.4 | T38: 93.98373984 | U38: 162.1 | V38: 102.2068096 | W38: 187.5 | X38: 97.20062208 | Y38: 146.3 | Z38: 90.92604102 | AA38: 155.3 | AB38: 92.60584377 | AC38: 141.3 | AD38: 95.60216509 | AE38: - | AF38: - | AG38: 118.5 | AH38: 96.18506494 | AI38: 164.7 | AJ38: 89.90174672 | AK38: 185.7 | AL38: 98.305982 | AM38: 121.9 | AN38: 104.4558698 | AO38: 199.1 | AP38: 98.32098765 | AQ38: 200.2 | AR38: 100.8564232 | AS38: 169 | AT38: 96
B40: NIR dt/ha | C40: 13.4 | E40: 13.4 | G40: 10.7 | I40: 3.5 | K40: 9.9 | M40: 10.4 | O40: 11.2 | Q40: 24.8 | S40: 16.5 | U40: 9.3 | W40: 6 | Y40: 22.1 | AA40: 11 | AC40: 21.5 | AG40: 8.8 | AI40: 12.7 | AK40: 10.7 | AM40: 12.8 | AO40: 24 | AQ40: 9.4 | AS40: 7.2
B41: NIR, % | C41: 6.8 | E41: 7.1 | G41: 6.4 | I41: 1.7 | K41: 6.8 | M41: 6.2 | O41: 4.8 | Q41: 15.1 | S41: 9.7 | U41: 5.6 | W41: 3.2 | Y41: 14.1 | AA41: 6.4 | AC41: 14.6 | AG41: 7.5 | AI41: 7.4 | AK41: 5.9 | AM41: 11 | AO41: 11.9 | AQ41: 4.9 | AS41: 4.1
A44: Wzorzec tworzą średnie wyniki odmian grupie.
A45: Nie włączono do syntezy: Słupia - dyskwalifikacja polowa
A49: Tabela 3
A50: Kukurydza na kiszonkę – grupa wczesna. Doświadczenia porejestrowe 2025. Zawartość suchej masy w plonie ogólnym, %
A52: Stacje/Odmiany | C52: Chrząstowo | D52: % wzorca | E52: Cicibór | F52: % wzorca | G52: Głębokie | H52: % wzorca | I52: Głodowo | J52: % wzorca | K52: Kawęczyn | L52: % wzorca | M52: Kościelna Wieś | N52: % wzorca | O52: Krzyżewo | P52: % wzorca | Q52: Łyski | R52: % wzorca | S52: Marianowo | T52: % wzorca | U52: Masłowice | V52: % wzorca | W52: Radostowo | X52: % wzorca | Y52: Radzików | Z52: % wzorca | AA52: Rarwino | AB52: % wzorca | AC52: Rychliki | AD52: % wzorca | AE52: Słupia | AF52: % wzorca | AG52: Smolice | AH52: % wzorca | AI52: Sulejów | AJ52: % wzorca | AK52: Śrem | AL52: % wzorca | AM52: Tomaszów Bol. | AN52: % wzorca | AO52: Węgrzce | AP52: % wzorca | AQ52: Wrócikowo | AR52: % wzorca | AS52: średnia | AT52: % wzorca
A54: wzorzec: | C54: 31.3 | E54: 36.3 | G54: 31.8 | I54: 32.5 | K54: 40.9 | M54: 33.2 | O54: 34.8 | Q54: 32.4 | S54: 29.1 | U54: 35.9 | W54: 29.5 | Y54: 42.7 | AA54: 34.4 | AC54: 31.2 | AG54: 32.3 | AI54: 32.7 | AK54: 30.9 | AM54: 35.4 | AO54: 32.6 | AQ54: 28.9 | AS54: 33.4
A56: 1 | B56: Herculio | C56: 30.8 | D56: =C56*100/$C$54 -> 98.40255591 | E56: 32.8 | F56: =E56*100/$E$54 -> 90.35812672 | G56: 34.5 | H56: =G56*100/$G$54 -> 108.490566 | I56: 32.8 | J56: =I56*100/$I$54 -> 100.9230769 | K56: 43.4 | L56: =K56*100/$K$54 -> 106.1124694 | M56: 33.6 | N56: =M56*100/$M$54 -> 101.2048193 | O56: 36.3 | P56: =O56*100/$O$54 -> 104.3103448 | Q56: 31 | R56: =Q56*100/$Q$54 -> 95.67901235 | S56: 30.9 | T56: =S56*100/$S$54 -> 106.185567 | U56: 36 | V56: =U56*100/$U$54 -> 100.2785515 | W56: 31.5 | X56: =W56*100/$W$54 -> 106.779661 | Y56: 45.8 | Z56: =Y56*100/$Y$54 -> 107.2599532 | AA56: 37.3 | AB56: =AA56*100/$AA$54 -> 108.4302326 | AC56: 28.9 | AD56: =AC56*100/$AC$54 -> 92.62820513 | AE56: - | AF56: - | AG56: 34.7 | AH56: =AG56*100/$AG$54 -> 107.4303406 | AI56: 33.6 | AJ56: =AI56*100/$AI$54 -> 102.7522936 | AK56: 31.8 | AL56: =AK56*100/$AK$54 -> 102.9126214 | AM56: 36.8 | AN56: =AM56*100/$AM$54 -> 103.9548023 | AO56: 32.7 | AP56: =AO56*100/$AO$54 -> 100.3067485 | AQ56: 29.3 | AS56: 34.2 | AT56: 102
A57: 2 | B57: Keltico | C57: 31.7 | D57: =C57*100/$C$54 -> 101.2779553 | E57: 38.1 | F57: =E57*100/$E$54 -> 104.9586777 | G57: 30.3 | H57: =G57*100/$G$54 -> 95.28301887 | I57: 31.7 | J57: =I57*100/$I$54 -> 97.53846154 | K57: 37.1 | L57: =K57*100/$K$54 -> 90.70904645 | M57: 34 | N57: =M57*100/$M$54 -> 102.4096386 | O57: 33.4 | P57: =O57*100/$O$54 -> 95.97701149 | Q57: 31.4 | R57: =Q57*100/$Q$54 -> 96.91358025 | S57: 29 | T57: =S57*100/$S$54 -> 99.65635739 | U57: 34.2 | V57: =U57*100/$U$54 -> 95.26462396 | W57: 29 | X57: =W57*100/$W$54 -> 98.30508475 | Y57: 39.8 | Z57: =Y57*100/$Y$54 -> 93.20843091 | AA57: 32.9 | AB57: =AA57*100/$AA$54 -> 95.63953488 | AC57: 31 | AD57: =AC57*100/$AC$54 -> 99.35897436 | AE57: - | AF57: - | AG57: 29.5 | AH57: =AG57*100/$AG$54 -> 91.33126935 | AI57: 34 | AJ57: =AI57*100/$AI$54 -> 103.9755352 | AK57: 29.8 | AL57: =AK57*100/$AK$54 -> 96.44012945 | AM57: 33.9 | AN57: =AM57*100/$AM$54 -> 95.76271186 | AO57: 31.4 | AP57: =AO57*100/$AO$54 -> 96.3190184 | AQ57: 27.4 | AS57: 32.5 | AT57: 97
A58: 3 | B58: KWS Kalpo | C58: 30.2 | D58: 96.485623 | E58: 36.1 | F58: 99.44903581 | G58: 29.7 | H58: 93.39622642 | I58: 32.5 | J58: 100 | K58: 40.5 | L58: 99.02200489 | M58: 34.4 | N58: 103.6144578 | O58: 36.7 | P58: 105.4597701 | Q58: 34.9 | R58: 107.7160494 | S58: 28.3 | T58: 97.25085911 | U58: 31.5 | V58: 87.74373259 | W58: 29.4 | X58: 99.66101695 | Y58: 42.7 | Z58: 100 | AA58: 33.6 | AB58: 97.6744186 | AC58: 32.6 | AD58: 104.4871795 | AE58: - | AF58: - | AG58: 31.9 | AH58: 98.76160991 | AI58: 33.8 | AJ58: 103.3639144 | AK58: 32.4 | AL58: 104.8543689 | AM58: 34.8 | AN58: 98.30508475 | AO58: 33.9 | AP58: 103.9877301 | AQ58: 28.6 | AS58: 33.4 | AT58: 100
A59: 4 | B59: Qualito | C59: 30.8 | D59: 98.40255591 | E59: 35.7 | F59: 98.34710744 | G59: 31.2 | H59: 98.11320755 | I59: 34.8 | J59: 107.0769231 | K59: 42 | L59: 102.6894866 | M59: 33.8 | N59: 101.8072289 | O59: 37.1 | P59: 106.6091954 | Q59: 33.1 | R59: 102.1604938 | S59: 31 | T59: 106.5292096 | U59: 40.4 | V59: 112.5348189 | W59: 30.8 | X59: 104.4067797 | Y59: 42.9 | Z59: 100.4683841 | AA59: 36 | AB59: 104.6511628 | AC59: 32.8 | AD59: 105.1282051 | AE59: - | AF59: - | AG59: 33.7 | AH59: 104.3343653 | AI59: 32 | AJ59: 97.85932722 | AK59: 31.4 | AL59: 101.618123 | AM59: 36.9 | AN59: 104.2372881 | AO59: 31.7 | AP59: 97.2392638 | AQ59: 30 | AS59: 34.4 | AT59: 103
A60: 5 | B60: SM Manoso | C60: 31.8 | D60: 101.5974441 | E60: 37.4 | F60: 103.030303 | G60: 32 | H60: 100.6289308 | I60: 32.7 | J60: 100.6153846 | K60: 43.2 | L60: 105.6234719 | M60: 32.5 | N60: 97.89156627 | O60: 32.8 | P60: 94.25287356 | Q60: 31.8 | R60: 98.14814815 | S60: 28 | T60: 96.21993127 | U60: 38.6 | V60: 107.5208914 | W60: 27.6 | X60: 93.55932203 | Y60: 39.2 | Z60: 91.80327869 | AA60: 33.2 | AB60: 96.51162791 | AC60: 29.2 | AD60: 93.58974359 | AE60: - | AF60: - | AG60: 30.8 | AH60: 95.35603715 | AI60: 31.7 | AJ60: 96.94189602 | AK60: 28.8 | AL60: 93.2038835 | AM60: 35.4 | AN60: 100 | AO60: 33 | AP60: 101.2269939 | AQ60: 28.6 | AS60: 32.9 | AT60: 98
A61: 6 | B61: SM Mieszko | C61: 32.2 | D61: 102.8753994 | E61: 37.8 | F61: 104.1322314 | G61: 32.8 | H61: 103.1446541 | I61: 30.4 | J61: 93.53846154 | K61: 39.6 | L61: 96.82151589 | M61: 30.9 | N61: 93.07228916 | O61: 32.6 | P61: 93.67816092 | Q61: 32.2 | R61: 99.38271605 | S61: 27.7 | T61: 95.18900344 | U61: 35 | V61: 97.49303621 | W61: 28.9 | X61: 97.96610169 | Y61: 45.9 | Z61: 107.4941452 | AA61: 33.8 | AB61: 98.25581395 | AC61: 33 | AD61: 105.7692308 | AE61: - | AF61: - | AG61: 33.3 | AH61: 103.0959752 | AI61: 31.2 | AJ61: 95.41284404 | AK61: 31.5 | AL61: 101.9417476 | AM61: 34.7 | AN61: 98.02259887 | AO61: 33.1 | AP61: 101.5337423 | AQ61: 29.4 | AS61: 33.3 | AT61: 100
A65: Wzorzec tworzą średnie wyniki odmian grupie.
A66: Nie włączono do syntezy: Słupia - dyskwalifikacja polowa
A70: Tabela 4
A71: Kukurydza na kiszonkę – grupa średniowczesna. Doświadczenia porejestrowe 2025. Plon ogólny świeżej masy, dt z ha
A73: Stacje/Odmiany | C73: Chrząstowo | D73: % wzorca | E73: Cicibór | F73: % wzorca | G73: Głębokie | H73: % wzorca | I73: Głodowo | J73: % wzorca | K73: Kawęczyn | L73: % wzorca | M73: Kościelna Wieś | N73: % wzorca | O73: Krzyżewo | P73: % wzorca | Q73: Łyski | R73: % wzorca | S73: Marianowo | T73: % wzorca | U73: Masłowice | V73: % wzorca | W73: Radostowo | X73: % wzorca | Y73: Radzików | Z73: % wzorca | AA73: Rarwino | AB73: % wzorca | AC73: Rychliki | AD73: % wzorca | AE73: Słupia | AF73: % wzorca | AG73: Smolice | AH73: % wzorca | AI73: Sulejów | AJ73: % wzorca | AK73: Śrem | AL73: % wzorca | AM73: Tomaszów Bol. | AN73: % wzorca | AO73: Węgrzce | AP73: % wzorca | AQ73: Wrócikowo | AR73: % wzorca | AS73: średnia | AT73: % wzorca
A75: wzorzec: | C75: 608 | E75: 452 | G75: 570 | I75: 641 | K75: 491 | M75: 606 | O75: 627 | Q75: 520 | S75: 601 | U75: 685 | W75: 625 | Y75: 404 | AA75: 513 | AC75: 596 | AG75: 404 | AI75: 538 | AK75: 627 | AM75: 448 | AO75: 688 | AQ75: 714 | AS75: 562
A77: 1 | B77: Agrolupo | C77: 586 | D77: =C77*100/608 -> 96.38157895 | E77: 414 | F77: =E77*100/452 -> 91.59292035 | G77: 549 | H77: =G77*100/570 -> 96.31578947 | I77: 725 | J77: =I77*100/641 -> 113.1045242 | K77: 451 | L77: =K77*100/491 -> 91.85336049 | M77: 599 | N77: =M77*100/606 -> 98.84488449 | O77: 589 | P77: =O77*100/627 -> 93.93939394 | Q77: 505 | R77: =Q77*100/520 -> 97.11538462 | S77: 581 | T77: =S77*100/601 -> 96.67221298 | U77: 716 | V77: =U77*100/$U$75 -> 104.5255474 | W77: 606 | X77: =W77*100/625 -> 96.96 | Y77: 340 | Z77: =Y77*100/404 -> 84.15841584 | AA77: 470 | AB77: =AA77*100/513 -> 91.61793372 | AC77: 581 | AD77: =AC77*100/596 -> 97.48322148 | AE77: - | AF77: - | AG77: 444 | AH77: =AG77*100/404 -> 109.9009901 | AI77: 499 | AJ77: =AI77*100/538 -> 92.75092937 | AK77: 632 | AL77: =AK77*100/627 -> 100.7974482 | AM77: 468 | AN77: =AM77*100/448 -> 104.4642857 | AO77: 701 | AP77: =AO77*100/688 -> 101.8895349 | AQ77: 726 | AR77: =AQ77*100/714 -> 101.6806723 | AS77: 551 | AT77: 98
A78: 2 | B78: Farmpower | C78: 664 | D78: =C78*100/608 -> 109.2105263 | E78: 546 | F78: =E78*100/452 -> 120.7964602 | G78: 574 | H78: =G78*100/570 -> 100.7017544 | I78: 644 | J78: =I78*100/641 -> 100.4680187 | K78: 555 | L78: =K78*100/491 -> 113.0346232 | M78: 591 | N78: =M78*100/606 -> 97.52475248 | O78: 586 | P78: =O78*100/627 -> 93.46092504 | Q78: 518 | R78: =Q78*100/520 -> 99.61538462 | S78: 588 | T78: =S78*100/601 -> 97.83693844 | U78: 640 | V78: =U78*100/$U$75 -> 93.43065693 | W78: 633 | X78: =W78*100/625 -> 101.28 | Y78: 420 | Z78: =Y78*100/404 -> 103.960396 | AA78: 576 | AB78: =AA78*100/513 -> 112.2807018 | AC78: 559 | AD78: =AC78*100/596 -> 93.79194631 | AE78: - | AF78: - | AG78: 426 | AH78: =AG78*100/404 -> 105.4455446 | AI78: 559 | AJ78: =AI78*100/538 -> 103.9033457 | AK78: 673 | AL78: =AK78*100/627 -> 107.3365231 | AM78: 385 | AN78: =AM78*100/448 -> 85.9375 | AO78: 660 | AP78: =AO78*100/688 -> 95.93023256 | AQ78: 672 | AR78: =AQ78*100/714 -> 94.11764706 | AS78: 570 | AT78: 101
A79: 3 | B79: Inception | C79: 571 | D79: 93.91447368 | E79: 399 | F79: 88.27433628 | G79: 551 | H79: 96.66666667 | I79: 632 | J79: 98.59594384 | K79: 454 | L79: 92.46435845 | M79: 545 | N79: 89.9339934 | O79: 583 | P79: 92.98245614 | Q79: 520 | R79: 100 | S79: 532 | T79: 88.51913478 | U79: 699 | V79: 102.0437956 | W79: 571 | X79: 91.36 | Y79: 426 | Z79: 105.4455446 | AA79: 469 | AB79: 91.42300195 | AC79: 497 | AD79: 83.38926174 | AE79: - | AF79: - | AG79: 374 | AH79: 92.57425743 | AI79: 553 | AJ79: 102.7881041 | AK79: 584 | AL79: 93.14194577 | AM79: 483 | AN79: 107.8125 | AO79: 593 | AP79: 86.19186047 | AQ79: 670 | AR79: 93.83753501 | AS79: 527 | AT79: 94
A80: 4 | B80: Inspiro | C80: 589 | D80: 96.875 | E80: 409 | F80: 90.48672566 | G80: 534 | H80: 93.68421053 | I80: 547 | J80: 85.33541342 | K80: 462 | L80: 94.09368635 | M80: 561 | N80: 92.57425743 | O80: 598 | P80: 95.37480064 | Q80: 487 | R80: 93.65384615 | S80: 528 | T80: 87.85357737 | U80: 652 | V80: 95.18248175 | W80: 581 | X80: 92.96 | Y80: 391 | Z80: 96.78217822 | AA80: 445 | AB80: 86.74463938 | AC80: 563 | AD80: 94.46308725 | AE80: - | AF80: - | AG80: 374 | AH80: 92.57425743 | AI80: 567 | AJ80: 105.3903346 | AK80: 593 | AL80: 94.57735247 | AM80: 424 | AN80: 94.64285714 | AO80: 667 | AP80: 96.94767442 | AQ80: 642 | AR80: 89.91596639 | AS80: 524 | AT80: 93
A81: 5 | B81: KWS Lupollino | C81: 536 | D81: 88.15789474 | E81: 363 | F81: 80.30973451 | G81: 538 | H81: 94.38596491 | I81: 571 | J81: 89.07956318 | K81: 479 | L81: 97.55600815 | M81: 577 | N81: 95.21452145 | O81: 622 | P81: 99.20255183 | Q81: 479 | R81: 92.11538462 | S81: 582 | T81: 96.83860233 | U81: 650 | V81: 94.89051095 | W81: 581 | X81: 92.96 | Y81: 386 | Z81: 95.54455446 | AA81: 502 | AB81: 97.85575049 | AC81: 552 | AD81: 92.61744966 | AE81: - | AF81: - | AG81: 373 | AH81: 92.32673267 | AI81: 535 | AJ81: 99.44237918 | AK81: 584 | AL81: 93.14194577 | AM81: 425 | AN81: 94.86607143 | AO81: 603 | AP81: 87.64534884 | AQ81: 660 | AR81: 92.43697479 | AS81: 524 | AT81: 93
A82: 6 | B82: MHR Mercado | C82: 634 | D82: 104.2763158 | E82: 500 | F82: 110.619469 | G82: 586 | H82: 102.8070175 | I82: 681 | J82: 106.2402496 | K82: 432 | L82: 87.98370672 | M82: 667 | N82: 110.0660066 | O82: 674 | P82: 107.4960128 | Q82: 568 | R82: 109.2307692 | S82: 654 | T82: 108.8186356 | U82: 808 | V82: 117.9562044 | W82: 641 | X82: 102.56 | Y82: 438 | Z82: 108.4158416 | AA82: 401 | AB82: 78.16764133 | AC82: 613 | AD82: 102.852349 | AE82: - | AF82: - | AG82: 437 | AH82: 108.1683168 | AI82: 551 | AJ82: 102.4163569 | AK82: 605 | AL82: 96.49122807 | AM82: 493 | AN82: 110.0446429 | AO82: 823 | AP82: 119.622093 | AQ82: 769 | AR82: 107.7030812 | AS82: 588 | AT82: 105
A83: 7 | B83: MHR Vamos | C83: 513 | D83: 84.375 | E83: 389 | F83: 86.0619469 | G83: 540 | H83: 94.73684211 | I83: 542 | J83: 84.55538222 | K83: 391 | L83: 79.63340122 | M83: 551 | N83: 90.92409241 | O83: 563 | P83: 89.79266348 | Q83: 430 | R83: 82.69230769 | S83: 392 | T83: 65.22462562 | U83: 651 | V83: 95.03649635 | W83: 545 | X83: 87.2 | Y83: 366 | Z83: 90.59405941 | AA83: 461 | AB83: 89.86354776 | AC83: 538 | AD83: 90.26845638 | AE83: - | AF83: - | AG83: 340 | AH83: 84.15841584 | AI83: 523 | AJ83: 97.21189591 | AK83: 474 | AL83: 75.59808612 | AM83: 419 | AN83: 93.52678571 | AO83: 687 | AP83: 99.85465116 | AQ83: 537 | AR83: 75.21008403 | AS83: 484 | AT83: 86
A84: 8 | B84: P8782 | C84: 644 | D84: 105.9210526 | E84: 528 | F84: 116.8141593 | G84: 587 | H84: 102.9824561 | I84: 677 | J84: 105.6162246 | K84: 529 | L84: 107.7393075 | M84: 605 | N84: 99.8349835 | O84: 639 | P84: 101.9138756 | Q84: 519 | R84: 99.80769231 | S84: 590 | T84: 98.16971714 | U84: 662 | V84: 96.64233577 | W84: 637 | X84: 101.92 | Y84: 374 | Z84: 92.57425743 | AA84: 601 | AB84: 117.1539961 | AC84: 642 | AD84: 107.7181208 | AE84: - | AF84: - | AG84: 418 | AH84: 103.4653465 | AI84: 507 | AJ84: 94.23791822 | AK84: 629 | AL84: 100.3189793 | AM84: 458 | AN84: 102.2321429 | AO84: 645 | AP84: 93.75 | AQ84: 635 | AR84: 88.93557423 | AS84: 572 | AT84: 102
A85: 9 | B85: RGT Deixxel | C85: 629 | D85: 103.4539474 | E85: 407 | F85: 90.04424779 | G85: 531 | H85: 93.15789474 | I85: 566 | J85: 88.29953198 | K85: 464 | L85: 94.50101833 | M85: 608 | N85: 100.330033 | O85: 588 | P85: 93.77990431 | Q85: 495 | R85: 95.19230769 | S85: 577 | T85: 96.00665557 | U85: 684 | V85: 99.8540146 | W85: 632 | X85: 101.12 | Y85: 366 | Z85: 90.59405941 | AA85: 379 | AB85: 73.8791423 | AC85: 557 | AD85: 93.45637584 | AE85: - | AF85: - | AG85: 340 | AH85: 84.15841584 | AI85: 536 | AJ85: 99.62825279 | AK85: 575 | AL85: 91.70653907 | AM85: 418 | AN85: 93.30357143 | AO85: 626 | AP85: 90.98837209 | AQ85: 653 | AR85: 91.45658263 | AS85: 524 | AT85: 93
A86: 10 | B86: RGT Lanxx | C86: 598 | D86: 98.35526316 | E86: 440 | F86: 97.34513274 | G86: 537 | H86: 94.21052632 | I86: 608 | J86: 94.85179407 | K86: 555 | L86: 113.0346232 | M86: 639 | N86: 105.4455446 | O86: 597 | P86: 95.215311 | Q86: 492 | R86: 94.61538462 | S86: 636 | T86: 105.8236273 | U86: 671 | V86: 97.95620438 | W86: 635 | X86: 101.6 | Y86: 359 | Z86: 88.86138614 | AA86: 496 | AB86: 96.68615984 | AC86: 583 | AD86: 97.81879195 | AE86: - | AF86: - | AG86: 384 | AH86: 95.04950495 | AI86: 524 | AJ86: 97.39776952 | AK86: 624 | AL86: 99.5215311 | AM86: 439 | AN86: 97.99107143 | AO86: 667 | AP86: 96.94767442 | AQ86: 673 | AR86: 94.25770308 | AS86: 552 | AT86: 98
A87: 11 | B87: RGT Oddaxx | C87: 680 | D87: 111.8421053 | E87: 447 | F87: 98.89380531 | G87: 564 | H87: 98.94736842 | I87: 620 | J87: 96.72386895 | K87: 474 | L87: 96.53767821 | M87: 622 | N87: 102.640264 | O87: 613 | P87: 97.76714514 | Q87: 527 | R87: 101.3461538 | S87: 606 | T87: 100.8319468 | U87: 685 | V87: 100 | W87: 624 | X87: 99.84 | Y87: 395 | Z87: 97.77227723 | AA87: 468 | AB87: 91.22807018 | AC87: 557 | AD87: 93.45637584 | AE87: - | AF87: - | AG87: 405 | AH87: 100.2475248 | AI87: 543 | AJ87: 100.929368 | AK87: 635 | AL87: 101.2759171 | AM87: 383 | AN87: 85.49107143 | AO87: 656 | AP87: 95.34883721 | AQ87: 709 | AR87: 99.29971989 | AS87: 554 | AT87: 99
A88: 12 | B88: SM Ina | C88: 625 | D88: 102.7960526 | E88: 515 | F88: 113.9380531 | G88: 615 | H88: 107.8947368 | I88: 698 | J88: 108.8923557 | K88: 558 | L88: 113.6456212 | M88: 595 | N88: 98.18481848 | O88: 679 | P88: 108.2934609 | Q88: 590 | R88: 113.4615385 | S88: 647 | T88: 107.6539101 | U88: 710 | V88: 103.649635 | W88: 670 | X88: 107.2 | Y88: 460 | Z88: 113.8613861 | AA88: 635 | AB88: 123.7816764 | AC88: 680 | AD88: 114.0939597 | AE88: - | AF88: - | AG88: 433 | AH88: 107.1782178 | AI88: 503 | AJ88: 93.49442379 | AK88: 709 | AL88: 113.0781499 | AM88: 475 | AN88: 106.0267857 | AO88: 777 | AP88: 112.9360465 | AQ88: 708 | AR88: 99.15966387 | AS88: 609 | AT88: 108
A89: 13 | B89: SM Jasper | C89: 603 | D89: 99.17763158 | E89: 489 | F89: 108.1858407 | G89: 600 | H89: 105.2631579 | I89: 638 | J89: 99.53198128 | K89: 533 | L89: 108.5539715 | M89: 629 | N89: 103.7953795 | O89: 651 | P89: 103.8277512 | Q89: 548 | R89: 105.3846154 | S89: 654 | T89: 108.8186356 | U89: 675 | V89: 98.54014599 | W89: 599 | X89: 95.84 | Y89: 384 | Z89: 95.04950495 | AA89: 506 | AB89: 98.63547758 | AC89: 615 | AD89: 103.1879195 | AE89: - | AF89: - | AG89: 401 | AH89: 99.25742574 | AI89: 458 | AJ89: 85.13011152 | AK89: 654 | AL89: 104.3062201 | AM89: 417 | AN89: 93.08035714 | AO89: 672 | AP89: 97.6744186 | AQ89: 760 | AR89: 106.442577 | AS89: 569 | AT89: 101
A90: 14 | B90: SM Nida | C90: 614 | D90: 100.9868421 | E90: 438 | F90: 96.90265487 | G90: 571 | H90: 100.1754386 | I90: 661 | J90: 103.1201248 | K90: 467 | L90: 95.11201629 | M90: 586 | N90: 96.69966997 | O90: 617 | P90: 98.40510367 | Q90: 504 | R90: 96.92307692 | S90: 678 | T90: 112.81198 | U90: 691 | V90: 100.8759124 | W90: 624 | X90: 99.84 | Y90: 375 | Z90: 92.82178218 | AA90: 468 | AB90: 91.22807018 | AC90: 673 | AD90: 112.9194631 | AE90: - | AF90: - | AG90: 419 | AH90: 103.7128713 | AI90: 525 | AJ90: 97.58364312 | AK90: 677 | AL90: 107.9744817 | AM90: 460 | AN90: 102.6785714 | AO90: 738 | AP90: 107.2674419 | AQ90: 783 | AR90: 109.6638655 | AS90: 573 | AT90: 102
A91: 15 | B91: SM Perseus | C91: 575 | D91: 94.57236842 | E91: 436 | F91: 96.46017699 | G91: 562 | H91: 98.59649123 | I91: 658 | J91: 102.6521061 | K91: 480 | L91: 97.75967413 | M91: 677 | N91: 111.7161716 | O91: 644 | P91: 102.7113238 | Q91: 501 | R91: 96.34615385 | S91: 570 | T91: 94.84193012 | U91: 731 | V91: 106.7153285 | W91: 622 | X91: 99.52 | Y91: 402 | Z91: 99.5049505 | AA91: 581 | AB91: 113.2553606 | AC91: 609 | AD91: 102.1812081 | AE91: - | AF91: - | AG91: 405 | AH91: 100.2475248 | AI91: 543 | AJ91: 100.929368 | AK91: 623 | AL91: 99.36204147 | AM91: 429 | AN91: 95.75892857 | AO91: 730 | AP91: 106.1046512 | AQ91: 758 | AR91: 106.162465 | AS91: 569 | AT91: 101
A92: 16 | B92: SM Rambo | C92: 649 | D92: 106.7434211 | E92: 464 | F92: 102.6548673 | G92: 611 | H92: 107.1929825 | I92: 661 | J92: 103.1201248 | K92: 460 | L92: 93.68635438 | M92: 582 | N92: 96.03960396 | O92: 634 | P92: 101.1164274 | Q92: 561 | R92: 107.8846154 | S92: 655 | T92: 108.985025 | U92: 718 | V92: 104.8175182 | W92: 623 | X92: 99.68 | Y92: 435 | Z92: 107.6732673 | AA92: 663 | AB92: 129.2397661 | AC92: 653 | AD92: 109.5637584 | AE92: - | AF92: - | AG92: 432 | AH92: 106.9306931 | AI92: 560 | AJ92: 104.0892193 | AK92: 617 | AL92: 98.40510367 | AM92: 479 | AN92: 106.9196429 | AO92: 800 | AP92: 116.2790698 | AQ92: 835 | AR92: 116.9467787 | AS92: 599 | AT92: 107
A93: 17 | B93: SM Rokita | C93: 685 | D93: 112.6644737 | E93: 502 | F93: 111.0619469 | G93: 601 | H93: 105.4385965 | I93: 703 | J93: 109.6723869 | K93: 515 | L93: 104.8879837 | M93: 630 | N93: 103.960396 | O93: 712 | P93: 113.5566188 | Q93: 556 | R93: 106.9230769 | S93: 650 | T93: 108.1530782 | U93: 830 | V93: 121.1678832 | W93: 687 | X93: 109.92 | Y93: 478 | Z93: 118.3168317 | AA93: 452 | AB93: 88.10916179 | AC93: 671 | AD93: 112.5838926 | AE93: - | AF93: - | AG93: 452 | AH93: 111.8811881 | AI93: 594 | AJ93: 110.4089219 | AK93: 740 | AL93: 118.0223285 | AM93: 451 | AN93: 100.6696429 | AO93: 732 | AP93: 106.3953488 | AQ93: 849 | AR93: 118.907563 | AS93: 614 | AT93: 109
A94: 18 | B94: SM Varsovia | C94: 595 | D94: 97.86184211 | E94: 437 | F94: 96.68141593 | G94: 586 | H94: 102.8070175 | I94: 621 | J94: 96.8798752 | K94: 535 | L94: 108.9613035 | M94: 686 | N94: 113.2013201 | O94: 648 | P94: 103.3492823 | Q94: 521 | R94: 100.1923077 | S94: 641 | T94: 106.655574 | U94: 705 | V94: 102.919708 | W94: 516 | X94: 82.56 | Y94: 419 | Z94: 103.7128713 | AA94: 501 | AB94: 97.66081871 | AC94: 564 | AD94: 94.63087248 | AE94: - | AF94: - | AG94: 398 | AH94: 98.51485149 | AI94: 547 | AJ94: 101.6728625 | AK94: 647 | AL94: 103.1897927 | AM94: 484 | AN94: 108.0357143 | AO94: 714 | AP94: 103.7790698 | AQ94: 771 | AR94: 107.9831933 | AS94: 570 | AT94: 101
A95: 19 | B95: SM Zadra | C95: 625 | D95: 102.7960526 | E95: 509 | F95: 112.6106195 | G95: 619 | H95: 108.5964912 | I95: 732 | J95: 114.1965679 | K95: 613 | L95: 124.8472505 | M95: 637 | N95: 105.1155116 | O95: 688 | P95: 109.7288676 | Q95: 562 | R95: 108.0769231 | S95: 653 | T95: 108.6522463 | U95: 637 | V95: 92.99270073 | W95: 635 | X95: 101.6 | Y95: 442 | Z95: 109.4059406 | AA95: 490 | AB95: 95.5165692 | AC95: 642 | AD95: 107.7181208 | AE95: - | AF95: - | AG95: 466 | AH95: 115.3465347 | AI95: 565 | AJ95: 105.0185874 | AK95: 674 | AL95: 107.4960128 | AM95: 500 | AN95: 111.6071429 | AO95: 707 | AP95: 102.7616279 | AQ95: 914 | AR95: 128.0112045 | AS95: 614 | AT95: 109
A96: 20 | B96: SM Zerka | C96: 622 | D96: 102.3026316 | E96: 455 | F96: 100.6637168 | G96: 589 | H96: 103.3333333 | I96: 693 | J96: 108.1123245 | K96: 484 | L96: 98.57433809 | M96: 637 | N96: 105.1155116 | O96: 673 | P96: 107.3365231 | Q96: 578 | R96: 111.1538462 | S96: 664 | T96: 110.4825291 | U96: 702 | V96: 102.4817518 | W96: 687 | X96: 109.92 | Y96: 401 | Z96: 99.25742574 | AA96: 613 | AB96: 119.4931774 | AC96: 737 | AD96: 123.6577181 | AE96: - | AF96: - | AG96: 467 | AH96: 115.5940594 | AI96: 533 | AJ96: 99.07063197 | AK96: 689 | AL96: 109.8883573 | AM96: 472 | AN96: 105.3571429 | AO96: 702 | AP96: 102.0348837 | AQ96: 757 | AR96: 106.022409 | AS96: 603 | AT96: 107
A97: 21 | B97: SM Zulu | C97: 633 | D97: 104.1118421 | E97: 432 | F97: 95.57522124 | G97: 601 | H97: 105.4385965 | I97: 685 | J97: 106.8642746 | K97: 412 | L97: 83.91038697 | M97: 608 | N97: 100.330033 | O97: 664 | P97: 105.9011164 | Q97: 583 | R97: 112.1153846 | S97: 616 | T97: 102.4958403 | U97: 628 | V97: 91.67883212 | W97: 632 | X97: 101.12 | Y97: 407 | Z97: 100.7425743 | AA97: 540 | AB97: 105.2631579 | AC97: 649 | AD97: 108.8926174 | AE97: - | AF97: - | AG97: 422 | AH97: 104.4554455 | AI97: 596 | AJ97: 110.7806691 | AK97: 651 | AL97: 103.8277512 | AM97: 474 | AN97: 105.8035714 | AO97: 770 | AP97: 111.9186047 | AQ97: 773 | AR97: 108.2633053 | AS97: 587 | AT97: 104
A98: 22 | B98: Spektro | C98: 628 | D98: 103.2894737 | E98: 426 | F98: 94.24778761 | G98: 558 | H98: 97.89473684 | I98: 606 | J98: 94.53978159 | K98: 569 | L98: 115.885947 | M98: 584 | N98: 96.36963696 | O98: 610 | P98: 97.28867624 | Q98: 500 | R98: 96.15384615 | S98: 595 | T98: 99.00166389 | U98: 575 | V98: 83.94160584 | W98: 735 | X98: 117.6 | Y98: 393 | Z98: 97.27722772 | AA98: 547 | AB98: 106.6276803 | AC98: 562 | AD98: 94.29530201 | AE98: - | AF98: - | AG98: 343 | AH98: 84.9009901 | AI98: 491 | AJ98: 91.26394052 | AK98: 615 | AL98: 98.0861244 | AM98: 442 | AN98: 98.66071429 | AO98: 653 | AP98: 94.9127907 | AQ98: 615 | AR98: 86.13445378 | AS98: 551 | AT98: 98
A99: 23 | B99: Sunbird | C99: 556 | D99: 91.44736842 | E99: 449 | F99: 99.33628319 | G99: 496 | H99: 87.01754386 | I99: 587 | J99: 91.57566303 | K99: 454 | L99: 92.46435845 | M99: 546 | N99: 90.0990099 | O99: 587 | P99: 93.62041467 | Q99: 501 | R99: 96.34615385 | S99: 537 | T99: 89.35108153 | U99: 675 | V99: 98.54014599 | W99: 568 | X99: 90.88 | Y99: 380 | Z99: 94.05940594 | AA99: 443 | AB99: 86.35477583 | AC99: 489 | AD99: 82.04697987 | AE99: - | AF99: - | AG99: 385 | AH99: 95.2970297 | AI99: 527 | AJ99: 97.95539033 | AK99: 561 | AL99: 89.47368421 | AM99: 402 | AN99: 89.73214286 | AO99: 654 | AP99: 95.05813953 | AQ99: 622 | AR99: 87.11484594 | AS99: 513 | AT99: 91
A100: 24 | B100: Tabarro | C100: 539 | D100: 88.65131579 | E100: 399 | F100: 88.27433628 | G100: 505 | H100: 88.59649123 | I100: 602 | J100: 93.91575663 | K100: 410 | L100: 83.50305499 | M100: 547 | N100: 90.2640264 | O100: 554 | P100: 88.35725678 | Q100: 465 | R100: 89.42307692 | S100: 589 | T100: 98.00332779 | U100: 556 | V100: 81.16788321 | W100: 551 | X100: 88.16 | Y100: 354 | Z100: 87.62376238 | AA100: 543 | AB100: 105.8479532 | AC100: 475 | AD100: 79.69798658 | AE100: - | AF100: - | AG100: 383 | AH100: 94.8019802 | AI100: 549 | AJ100: 102.0446097 | AK100: 560 | AL100: 89.31419458 | AM100: 457 | AN100: 102.0089286 | AO100: 634 | AP100: 92.15116279 | AQ100: 560 | AR100: 78.43137255 | AS100: 509 | AT100: 91
A101: 25 | B101: Blandeen * | C101: 621 | D101: 102.1381579 | E101: 509 | F101: 112.6106195 | G101: 603 | H101: 105.7894737 | I101: 636 | J101: 99.2199688 | K101: 497 | L101: 101.2219959 | M101: 651 | N101: 107.4257426 | O101: 640 | P101: 102.0733652 | Q101: 505 | R101: 97.11538462 | S101: 567 | T101: 94.34276206 | U101: 731 | V101: 106.7153285 | W101: 771 | X101: 123.36 | Y101: 494 | Z101: 122.2772277 | AA101: 557 | AB101: 108.5769981 | AC101: 601 | AD101: 100.8389262 | AE101: - | AF101: - | AG101: 398 | AH101: 98.51485149 | AI101: 524 | AJ101: 97.39776952 | AK101: 688 | AL101: 109.7288676 | AM101: 486 | AN101: 108.4821429 | AO101: 645 | AP101: 93.75 | AQ101: 738 | AR101: 103.3613445 | AS101: 586 | AT101: 104
A102: 26 | B102: Monster * | C102: 586 | D102: 96.38157895 | E102: 456 | F102: 100.8849558 | G102: 616 | H102: 108.0701754 | I102: 659 | J102: 102.8081123 | K102: 538 | L102: 109.5723014 | M102: 601 | N102: 99.17491749 | O102: 641 | P102: 102.2328549 | Q102: 512 | R102: 98.46153846 | S102: 647 | T102: 107.6539101 | U102: 728 | V102: 106.2773723 | W102: 639 | X102: 102.24 | Y102: 411 | Z102: 101.7326733 | AA102: 542 | AB102: 105.6530214 | AC102: 622 | AD102: 104.3624161 | AE102: - | AF102: - | AG102: 398 | AH102: 98.51485149 | AI102: 581 | AJ102: 107.9925651 | AK102: 599 | AL102: 95.53429027 | AM102: 434 | AN102: 96.875 | AO102: 642 | AP102: 93.31395349 | AQ102: 763 | AR102: 106.8627451 | AS102: 573 | AT102: 102
B104: NIR dt/ha | C104: 42.3 | E104: 29.1 | G104: 36 | I104: 14.1 | K104: 30.5 | M104: 28.9 | O104: 56.9 | Q104: 36.1 | S104: 66.5 | U104: 101 | W104: 36.1 | Y104: 33.4 | AA104: 25.6 | AC104: 66 | AG104: 50.6 | AI104: 36.9 | AK104: 24.6 | AM104: 34.2 | AO104: 68.2 | AQ104: 36.4 | AS104: 26
B105: NIR, % | C105: 7.1 | E105: 6.6 | G105: 6.6 | I105: 2.2 | K105: 6.3 | M105: 4.8 | O105: 9.3 | Q105: 6.9 | S105: 12.3 | U105: 14.9 | W105: 5.8 | Y105: 8.6 | AA105: 5 | AC105: 11.1 | AG105: 13 | AI105: 7.1 | AK105: 13.3 | AM105: 7.6 | AO105: 9.9 | AQ105: 5.5 | AS105: 4.7
B106: Data zbioru | C106: 2025-09-23 | E106: 2025-09-24 | G106: 2025-09-04 | I106: 2025-09-24 | O106: 2025-09-24 | Q106: 2025-09-22 | S106: 2025-09-30 | W106: 2025-10-08 | AA106: 2025-09-24 | AC106: 2025-10-06 | AK106: 2025-09-10 | AO106: 2025-09-11
A109: Nie włączono do syntezy: Słupia - dyskwalifikacja polowa, Masłowice – dyskwalifikacja statystyczna)
A110: Wzorzec tworzą średnie wyniki odmian grupie.
A111: Lp. 25-26 - odmiany z katalogu wspólnotowego - CCA (nie wpisane do Krajowego rejestru)
A115: Tabela 5
A116: Kukurydza na kiszonkę – grupa średniowczesna. Doświadczenia porejestrowe 2025. Plon ogólny suchej masy, dt z ha
A118: Stacje/Odmiany | C118: Chrząstowo | D118: % wzorca | E118: Cicibór | F118: % wzorca | G118: Głębokie | H118: % wzorca | I118: Głodowo | J118: % wzorca | K118: Kawęczyn | L118: % wzorca | M118: Kościelna Wieś | N118: % wzorca | O118: Krzyżewo | P118: % wzorca | Q118: Łyski | R118: % wzorca | S118: Marianowo | T118: % wzorca | U118: Radostowo | V118: % wzorca | W118: Radzików | X118: % wzorca | Y118: Rarwino | Z118: % wzorca | AA118: Rychliki | AB118: % wzorca | AC118: Słupia | AD118: % wzorca | AE118: Smolice | AF118: % wzorca | AG118: Sulejów | AH118: % wzorca | AI118: Śrem | AJ118: % wzorca | AK118: Tomaszów Bol. | AL118: % wzorca | AM118: Węgrzce | AN118: % wzorca | AO118: Wrócikowo | AP118: % wzorca | AQ118: średnia | AR118: % Wzorca | AS118: Masłowice | AT118: % wzorca
A120: wzorzec: | C120: 199.3 | E120: 159 | G120: 175.9 | I120: 204.2 | K120: 176.4 | M120: 182.7 | O120: 216.3 | Q120: 190.5 | S120: 198.4 | U120: 188.2 | W120: 165.1 | Y120: 170.6 | AA120: 191.7 | AE120: 127.2 | AG120: 172.2 | AI120: 197.6 | AK120: 140.2 | AM120: 220.8 | AO120: 207.2 | AQ120: 183.3 | AS120: 238.9
A122: 1 | B122: Agrolupo | C122: 199.3 | D122: =C122*100/199.3 -> 100 | E122: 198.9 | F122: =E122*100/159 -> 125.0943396 | G122: 205.6 | H122: =G122*100/175.9 -> 116.8845935 | I122: 235.5 | J122: =I122*100/204.2 -> 115.3281097 | K122: 188.2 | L122: =K122*100/175.4 -> 107.2976055 | M122: 173.4 | N122: =M122*100/182.7 -> 94.90968801 | O122: 237.1 | P122: =O122*100/216.3 -> 109.6162737 | Q122: 201 | R122: =Q122*100/190.5 -> 105.511811 | S122: 224.4 | T122: =S122*100/198.4 -> 113.1048387 | U122: 183.6 | V122: =U122*100/188.2 -> 97.55579171 | W122: 181.2 | X122: =W122*100/195.1 -> 92.87544849 | Y122: 151.7 | Z122: =Y122*100/170.6 -> 88.92145369 | AA122: 185.2 | AB122: =AA122*100/191.7 -> 96.60928534 | AC122: - | AD122: - | AE122: 139.8 | AF122: =AE122*100/127.2 -> 109.9056604 | AG122: 166.2 | AH122: =AG122*100/172.2 -> 96.51567944 | AI122: 208.8 | AJ122: =AI122*100/197.6 -> 105.6680162 | AK122: 152.9 | AL122: =AK122*100/140.2 -> 109.0584879 | AM122: 230 | AN122: =AM122*100/220.8 -> 104.1666667 | AO122: 235.5 | AP122: =AO122*100/207.2 -> 113.6583012 | AQ122: 194.6 | AR122: 106 | AS122: 221.3 | AT122: =AS122*100/$AS$120 -> 92.6329008
A123: 2 | B123: Farmpower | C123: 222.5 | D123: =C123*100/199.3 -> 111.6407426 | E123: 172.7 | F123: =E123*100/159 -> 108.6163522 | G123: 173.5 | H123: =G123*100/175.9 -> 98.6355884 | I123: 202.7 | J123: =I123*100/204.2 -> 99.26542605 | K123: 193.8 | L123: =K123*100/175.4 -> 110.4903079 | M123: 185.2 | N123: =M123*100/182.7 -> 101.3683634 | O123: 202.5 | P123: =O123*100/216.3 -> 93.61997226 | Q123: 179.4 | R123: =Q123*100/190.5 -> 94.17322835 | S123: 183.8 | T123: =S123*100/198.4 -> 92.64112903 | U123: 176.3 | V123: =U123*100/188.2 -> 93.67693943 | W123: 157.6 | X123: =W123*100/195.1 -> 80.77908765 | Y123: 168.6 | Z123: =Y123*100/170.6 -> 98.82766706 | AA123: 178.4 | AB123: =AA123*100/191.7 -> 93.06207616 | AC123: - | AD123: - | AE123: 126 | AF123: =AE123*100/127.2 -> 99.05660377 | AG123: 174.8 | AH123: =AG123*100/172.2 -> 101.5098722 | AI123: 206.2 | AJ123: =AI123*100/197.6 -> 104.3522267 | AK123: 115.8 | AL123: =AK123*100/140.2 -> 82.59629101 | AM123: 205.1 | AN123: =AM123*100/220.8 -> 92.88949275 | AO123: 208.8 | AP123: =AO123*100/207.2 -> 100.7722008 | AQ123: 180.7 | AR123: 99 | AS123: 230.7 | AT123: =AS123*100/$AS$120 -> 96.56760151
A124: 3 | B124: Inception | C124: 187.9 | D124: 94.27997993 | E124: 169.8 | F124: 106.7924528 | G124: 170.4 | H124: 96.87322342 | I124: 195.4 | J124: 95.69049951 | K124: 163.2 | L124: 93.04446978 | M124: 185.2 | N124: 101.3683634 | O124: 188.8 | P124: 87.28617661 | Q124: 189.4 | R124: 99.42257218 | S124: 175.9 | T124: 88.65927419 | U124: 167.6 | V124: 89.05419766 | W124: 158.3 | X124: 81.13787801 | Y124: 151.1 | Z124: 88.56975381 | AA124: 163.4 | AB124: 85.23735003 | AC124: - | AD124: - | AE124: 109.5 | AF124: 86.08490566 | AG124: 177.9 | AH124: 103.3101045 | AI124: 180.1 | AJ124: 91.1437247 | AK124: 149.3 | AL124: 106.4907275 | AM124: 178.7 | AN124: 80.93297101 | AO124: 192.8 | AP124: 93.05019305 | AQ124: 171.3 | AR124: 93 | AS124: 242.3 | AT124: 101.4231896
A125: 4 | B125: Inspiro | C125: 209.6 | D125: 105.1680883 | E125: 149.5 | F125: 94.02515723 | G125: 167.1 | H125: 94.99715748 | I125: 164.6 | J125: 80.6072478 | K125: 157.6 | L125: 89.85176739 | M125: 172.6 | N125: 94.47181171 | O125: 197.9 | P125: 91.49329635 | Q125: 190.9 | R125: 100.2099738 | S125: 175.2 | T125: 88.30645161 | U125: 169 | V125: 89.79808714 | W125: 148.3 | X125: 76.01230138 | Y125: 136.1 | Z125: 79.77725674 | AA125: 184.1 | AB125: 96.03547209 | AC125: - | AD125: - | AE125: 117.9 | AF125: 92.68867925 | AG125: 189.2 | AH125: 109.8722416 | AI125: 193.2 | AJ125: 97.77327935 | AK125: 141.2 | AL125: 100.7132668 | AM125: 209.6 | AN125: 94.92753623 | AO125: 204.8 | AP125: 98.84169884 | AQ125: 172.5 | AR125: 94 | AS125: 235.3 | AT125: 98.49309334
A126: 5 | B126: KWS Lupollino | C126: 188.8 | D126: 94.73156046 | E126: 105.9 | F126: 66.60377358 | G126: 196.6 | H126: 111.76805 | I126: 196 | J126: 95.98432909 | K126: 182.2 | L126: 103.8768529 | M126: 188.2 | N126: 103.0103996 | O126: 230.7 | P126: 106.6574202 | Q126: 170.6 | R126: 89.55380577 | S126: 207 | T126: 104.3346774 | U126: 178.9 | V126: 95.05844846 | W126: 152.1 | X126: 77.9600205 | Y126: 174.7 | Z126: 102.4032825 | AA126: 188.5 | AB126: 98.33072509 | AC126: - | AD126: - | AE126: 124 | AF126: 97.48427673 | AG126: 169.2 | AH126: 98.25783972 | AI126: 201 | AJ126: 101.7206478 | AK126: 129 | AL126: 92.01141227 | AM126: 201.4 | AN126: 91.21376812 | AO126: 192 | AP126: 92.66409266 | AQ126: 177.7 | AR126: 97 | AS126: 236.3 | AT126: 98.91167853
A127: 6 | B127: MHR Mercado | C127: 202.8 | D127: 101.7561465 | E127: 168.9 | F127: 106.2264151 | G127: 168.6 | H127: 95.84991472 | I127: 207.1 | J127: 101.4201763 | K127: 161.1 | L127: 91.84720639 | M127: 191 | N127: 104.5429666 | O127: 233.2 | P127: 107.8132224 | Q127: 203.4 | R127: 106.7716535 | S127: 207.6 | T127: 104.6370968 | U127: 179.6 | V127: 95.4303932 | W127: 173.5 | X127: 88.92875448 | Y127: 155.1 | Z127: 90.9144197 | AA127: 184.8 | AB127: 96.40062598 | AC127: - | AD127: - | AE127: 131.3 | AF127: 103.2232704 | AG127: 177 | AH127: 102.7874564 | AI127: 178.6 | AJ127: 90.38461538 | AK127: 152.5 | AL127: 108.7731812 | AM127: 257.8 | AN127: 116.7572464 | AO127: 200.7 | AP127: 96.86293436 | AQ127: 186 | AR127: 101 | AS127: 266.5 | AT127: 111.552951
A128: 7 | B128: MHR Vamos | C128: 151.3 | D128: 75.91570497 | E128: 121.8 | F128: 76.60377358 | G128: 154.7 | H128: 87.94769756 | I128: 153.7 | J128: 75.26934378 | K128: 133.3 | L128: 75.9977195 | M128: 159.7 | N128: 87.41105638 | O128: 174.6 | P128: 80.72122053 | Q128: 137.8 | R128: 72.33595801 | S128: 125.8 | T128: 63.40725806 | U128: 158 | V128: 83.95324123 | W128: 146.1 | X128: 74.88467453 | Y128: 170 | Z128: 99.64830012 | AA128: 171.5 | AB128: 89.46270214 | AC128: - | AD128: - | AE128: 105.4 | AF128: 82.86163522 | AG128: 165.7 | AH128: 96.2253194 | AI128: 136.7 | AJ128: 69.18016194 | AK128: 106.4 | AL128: 75.89158345 | AM128: 217 | AN128: 98.27898551 | AO128: 144.4 | AP128: 69.69111969 | AQ128: 149.1 | AR128: 81 | AS128: 244 | AT128: 102.1347844
A129: 8 | B129: P8782 | C129: 209 | D129: 104.8670346 | E129: 193.6 | F129: 121.7610063 | G129: 169.5 | H129: 96.36156907 | I129: 207.6 | J129: 101.6650343 | K129: 221.7 | L129: 126.3968073 | M129: 164.9 | N129: 90.25725233 | O129: 225.3 | P129: 104.1608877 | Q129: 175.1 | R129: 91.9160105 | S129: 206 | T129: 103.8306452 | U129: 197.6 | V129: 104.9946865 | W129: 159.7 | X129: 81.85545874 | Y129: 181.8 | Z129: 106.5650645 | AA129: 213.7 | AB129: 111.476265 | AC129: - | AD129: - | AE129: 124.1 | AF129: 97.56289308 | AG129: 163.3 | AH129: 94.83159117 | AI129: 190.9 | AJ129: 96.60931174 | AK129: 139.2 | AL129: 99.28673324 | AM129: 213.8 | AN129: 96.82971014 | AO129: 190.7 | AP129: 92.03667954 | AQ129: 186.7 | AR129: 102 | AS129: 249.2 | AT129: 104.3114274
A130: 9 | B130: RGT Deixxel | C130: 220.4 | D130: 110.5870547 | E130: 146.7 | F130: 92.26415094 | G130: 174.6 | H130: 99.26094372 | I130: 194.3 | J130: 95.15181195 | K130: 157.2 | L130: 89.62371722 | M130: 184 | N130: 100.711549 | O130: 201.7 | P130: 93.25011558 | Q130: 189.4 | R130: 99.42257218 | S130: 200.4 | T130: 101.0080645 | U130: 208.8 | V130: 110.9458023 | W130: 150.1 | X130: 76.93490518 | Y130: 144 | Z130: 84.40797186 | AA130: 190.4 | AB130: 99.32185707 | AC130: - | AD130: - | AE130: 111.1 | AF130: 87.3427673 | AG130: 165.9 | AH130: 96.34146341 | AI130: 194.6 | AJ130: 98.48178138 | AK130: 151.1 | AL130: 107.7746077 | AM130: 203 | AN130: 91.9384058 | AO130: 189.5 | AP130: 91.45752896 | AQ130: 177.7 | AR130: 97 | AS130: 256.7 | AT130: 107.4508162
A131: 10 | B131: RGT Lanxx | C131: 193.8 | D131: 97.24034119 | E131: 153.5 | F131: 96.5408805 | G131: 173 | H131: 98.35133599 | I131: 199.3 | J131: 97.60039177 | K131: 189.1 | L131: 107.8107184 | M131: 208.7 | N131: 114.2309797 | O131: 216 | P131: 99.86130374 | Q131: 194.3 | R131: 101.9947507 | S131: 218.4 | T131: 110.0806452 | U131: 206.7 | V131: 109.8299681 | W131: 157.8 | X131: 80.88159918 | Y131: 180.2 | Z131: 105.6271981 | AA131: 201.5 | AB131: 105.1121544 | AC131: - | AD131: - | AE131: 112.8 | AF131: 88.67924528 | AG131: 174.4 | AH131: 101.2775842 | AI131: 204.8 | AJ131: 103.6437247 | AK131: 169.2 | AL131: 120.6847361 | AM131: 208 | AN131: 94.20289855 | AO131: 204.8 | AP131: 98.84169884 | AQ131: 187.7 | AR131: 102 | AS131: 246.9 | AT131: 103.3486815
A132: 11 | B132: RGT Oddaxx | C132: 232.7 | D132: 116.7586553 | E132: 160.4 | F132: 100.8805031 | G132: 183.4 | H132: 104.2637862 | I132: 220.9 | J132: 108.1782566 | K132: 169 | L132: 96.35119726 | M132: 181.5 | N132: 99.34318555 | O132: 231.7 | P132: 107.1197411 | Q132: 198.3 | R132: 104.0944882 | S132: 191.5 | T132: 96.52217742 | U132: 203.8 | V132: 108.2890542 | W132: 170.5 | X132: 87.3910815 | Y132: 169.4 | Z132: 99.29660023 | AA132: 179.1 | AB132: 93.42723005 | AC132: - | AD132: - | AE132: 133.2 | AF132: 104.7169811 | AG132: 176.5 | AH132: 102.4970964 | AI132: 205.2 | AJ132: 103.8461538 | AK132: 121.2 | AL132: 86.44793153 | AM132: 217 | AN132: 98.27898551 | AO132: 192.2 | AP132: 92.76061776 | AQ132: 186.2 | AR132: 102 | AS132: 219.8 | AT132: 92.00502302
A133: 12 | B133: SM Ina | C133: 190.3 | D133: 95.48419468 | E133: 168.8 | F133: 106.163522 | G133: 182.1 | H133: 103.52473 | I133: 223.4 | J133: 109.4025465 | K133: 186.5 | L133: 106.3283922 | M133: 197.8 | N133: 108.2649152 | O133: 219.8 | P133: 101.618123 | Q133: 186.1 | R133: 97.69028871 | S133: 196.9 | T133: 99.24395161 | U133: 174.6 | V133: 92.77364506 | W133: 188.8 | X133: 96.77088672 | Y133: 200.3 | Z133: 117.4091442 | AA133: 204.3 | AB133: 106.57277 | AC133: - | AD133: - | AE133: 123 | AF133: 96.69811321 | AG133: 159.4 | AH133: 92.56678281 | AI133: 212.9 | AJ133: 107.742915 | AK133: 138.5 | AL133: 98.7874465 | AM133: 245.4 | AN133: 111.1413043 | AO133: 193.8 | AP133: 93.53281853 | AQ133: 189.1 | AR133: 103 | AS133: 222.3 | AT133: 93.05148598
A134: 13 | B134: SM Jasper | C134: 222.1 | D134: 111.4400401 | E134: 176.4 | F134: 110.9433962 | G134: 183.9 | H134: 104.5480387 | I134: 193.4 | J134: 94.71106758 | K134: 167.6 | L134: 95.55302166 | M134: 197 | N134: 107.8270389 | O134: 223.6 | P134: 103.3749422 | Q134: 206.9 | R134: 108.6089239 | S134: 235.7 | T134: 118.8004032 | U134: 156.9 | V134: 83.36875664 | W134: 178.6 | X134: 91.54279856 | Y134: 162.3 | Z134: 95.13481829 | AA134: 190.2 | AB134: 99.21752739 | AC134: - | AD134: - | AE134: 131.2 | AF134: 103.1446541 | AG134: 148.6 | AH134: 86.29500581 | AI134: 211.3 | AJ134: 106.9331984 | AK134: 142.9 | AL134: 101.9258203 | AM134: 214.3 | AN134: 97.05615942 | AO134: 224.8 | AP134: 108.4942085 | AQ134: 187.8 | AR134: 102 | AS134: 239.8 | AT134: 100.3767267
A135: 14 | B135: SM Nida | C135: 211.3 | D135: 106.0210738 | E135: 158.7 | F135: 99.81132075 | G135: 184.9 | H135: 105.1165435 | I135: 208.7 | J135: 102.2037218 | K135: 176.5 | L135: 100.627138 | M135: 172.6 | N135: 94.47181171 | O135: 247 | P135: 114.1932501 | Q135: 172.5 | R135: 90.5511811 | S135: 223.4 | T135: 112.6008065 | U135: 190.3 | V135: 101.1158342 | W135: 158.2 | X135: 81.08662225 | Y135: 143.4 | Z135: 84.05627198 | AA135: 215.5 | AB135: 112.4152321 | AC135: - | AD135: - | AE135: 141.7 | AF135: 111.3993711 | AG135: 173.3 | AH135: 100.6387921 | AI135: 219.5 | AJ135: 111.082996 | AK135: 141.4 | AL135: 100.8559201 | AM135: 236.8 | AN135: 107.2463768 | AO135: 238.4 | AP135: 115.0579151 | AQ135: 190.2 | AR135: 104 | AS135: 221.5 | AT135: 92.71661783
A136: 15 | B136: SM Perseus | C136: 195.2 | D136: 97.9427998 | E136: 147.8 | F136: 92.95597484 | G136: 174.2 | H136: 99.03354179 | I136: 223.3 | J136: 109.3535749 | K136: 171 | L136: 97.49144812 | M136: 198.4 | N136: 108.5933224 | O136: 215.7 | P136: 99.72260749 | Q136: 188.4 | R136: 98.8976378 | S136: 173.8 | T136: 87.60080645 | U136: 205.9 | V136: 109.4048884 | W136: 162.3 | X136: 83.18810866 | Y136: 201.8 | Z136: 118.2883939 | AA136: 198.5 | AB136: 103.5472092 | AC136: - | AD136: - | AE136: 129.8 | AF136: 102.0440252 | AG136: 171.8 | AH136: 99.76771196 | AI136: 199.7 | AJ136: 101.062753 | AK136: 134.5 | AL136: 95.93437946 | AM136: 237.5 | AN136: 107.5634058 | AO136: 235.5 | AP136: 113.6583012 | AQ136: 187.6 | AR136: 102 | AS136: 237.1 | AT136: 99.24654667
A137: 16 | B137: SM Rambo | C137: 219.3 | D137: 110.0351229 | E137: 143.2 | F137: 90.06289308 | G137: 169.7 | H137: 96.47527004 | I137: 199.8 | J137: 97.84524976 | K137: 170.2 | L137: 97.03534778 | M137: 180.8 | N137: 98.96004379 | O137: 204.6 | P137: 94.59084605 | Q137: 209.4 | R137: 109.9212598 | S137: 185 | T137: 93.24596774 | U137: 162.1 | V137: 86.13177471 | W137: 155.1 | X137: 79.49769349 | Y137: 219.7 | Z137: 128.7807737 | AA137: 194.1 | AB137: 101.2519562 | AC137: - | AD137: - | AE137: 134.9 | AF137: 106.0534591 | AG137: 180.6 | AH137: 104.8780488 | AI137: 186.9 | AJ137: 94.58502024 | AK137: 140.9 | AL137: 100.4992867 | AM137: 258.3 | AN137: 116.9836957 | AO137: 239.3 | AP137: 115.492278 | AQ137: 187 | AR137: 102 | AS137: 268.1 | AT137: 112.2226873
A138: 17 | B138: SM Rokita | C138: 222.5 | D138: 111.6407426 | E138: 160.4 | F138: 100.8805031 | G138: 178.8 | H138: 101.648664 | I138: 219.7 | J138: 107.5905975 | K138: 183 | L138: 104.3329532 | M138: 172 | N138: 94.14340449 | O138: 250.7 | P138: 115.9038373 | Q138: 205.6 | R138: 107.9265092 | S138: 201.9 | T138: 101.7641129 | U138: 213.9 | V138: 113.6556854 | W138: 169.2 | X138: 86.72475654 | Y138: 170.3 | Z138: 99.82415006 | AA138: 241.1 | AB138: 125.7694314 | AC138: - | AD138: - | AE138: 140.7 | AF138: 110.6132075 | AG138: 178.8 | AH138: 103.8327526 | AI138: 221.1 | AJ138: 111.8927126 | AK138: 141.3 | AL138: 100.7845934 | AM138: 240.3 | AN138: 108.8315217 | AO138: 246.8 | AP138: 119.1119691 | AQ138: 197.8 | AR138: 108 | AS138: 296.9 | AT138: 124.2779406
A139: 18 | B139: SM Varsovia | C139: 182.8 | D139: 91.72102358 | E139: 160.7 | F139: 101.0691824 | G139: 180.4 | H139: 102.5582717 | I139: 207.6 | J139: 101.6650343 | K139: 199.8 | L139: 113.9110604 | M139: 197.6 | N139: 108.1554461 | O139: 231.3 | P139: 106.9348128 | Q139: 190.5 | R139: 100 | S139: 224.2 | T139: 113.0040323 | U139: 168.4 | V139: 89.47927736 | W139: 181.3 | X139: 92.92670425 | Y139: 157.2 | Z139: 92.14536928 | AA139: 186.8 | AB139: 97.4439228 | AC139: - | AD139: - | AE139: 131.8 | AF139: 103.6163522 | AG139: 172.3 | AH139: 100.058072 | AI139: 210.8 | AJ139: 106.6801619 | AK139: 141.9 | AL139: 101.2125535 | AM139: 235.8 | AN139: 106.7934783 | AO139: 207.9 | AP139: 100.3378378 | AQ139: 187.9 | AR139: 102 | AS139: 255.3 | AT139: 106.864797
A140: 19 | B140: SM Zadra | C140: 200.8 | D140: 100.7526342 | E140: 166 | F140: 104.4025157 | G140: 184.8 | H140: 105.059693 | I140: 220.1 | J140: 107.7864838 | K140: 223.2 | L140: 127.2519954 | M140: 194.7 | N140: 106.5681445 | O140: 224.1 | P140: 103.6061026 | Q140: 189.3 | R140: 99.37007874 | S140: 208.8 | T140: 105.2419355 | U140: 209.8 | V140: 111.477152 | W140: 158.4 | X140: 81.18913378 | Y140: 194.6 | Z140: 114.0679953 | AA140: 201.7 | AB140: 105.2164841 | AC140: - | AD140: - | AE140: 145 | AF140: 113.9937107 | AG140: 186.7 | AH140: 108.4204413 | AI140: 200 | AJ140: 101.2145749 | AK140: 147.7 | AL140: 105.3495007 | AM140: 222.1 | AN140: 100.5887681 | AO140: 240.4 | AP140: 116.023166 | AQ140: 195.7 | AR140: 107 | AS140: 222.6 | AT140: 93.17706153
A141: 20 | B141: SM Zerka | C141: 207.8 | D141: 104.2649272 | E141: 159 | F141: 100 | G141: 172.1 | H141: 97.83968164 | I141: 217.6 | J141: 106.5621939 | K141: 186.8 | L141: 106.4994299 | M141: 185.2 | N141: 101.3683634 | O141: 244.6 | P141: 113.0836801 | Q141: 213.7 | R141: 112.1784777 | S141: 222.5 | T141: 112.1471774 | U141: 207.3 | V141: 110.1487779 | W141: 175.9 | X141: 90.15889288 | Y141: 206.7 | Z141: 121.1606096 | AA141: 253.9 | AB141: 132.446531 | AC141: - | AD141: - | AE141: 135.2 | AF141: 106.2893082 | AG141: 162.9 | AH141: 94.59930314 | AI141: 206.9 | AJ141: 104.7064777 | AK141: 165.1 | AL141: 117.7603424 | AM141: 232.2 | AN141: 105.1630435 | AO141: 198.9 | AP141: 95.99420849 | AQ141: 197.6 | AR141: 108 | AS141: 232.9 | AT141: 97.48848891
A142: 21 | B142: SM Zulu | C142: 199.3 | D142: 100 | E142: 181.4 | F142: 114.0880503 | G142: 179.4 | H142: 101.9897669 | I142: 215.2 | J142: 105.3868756 | K142: 156.8 | L142: 89.39566705 | M142: 178.1 | N142: 97.48221128 | O142: 220.2 | P142: 101.8030513 | Q142: 213.2 | R142: 111.9160105 | S142: 180.1 | T142: 90.77620968 | U142: 182.1 | V142: 96.75876727 | W142: 171.7 | X142: 88.00615069 | Y142: 177.7 | Z142: 104.1617819 | AA142: 200.3 | AB142: 104.4861763 | AC142: - | AD142: - | AE142: 140.9 | AF142: 110.7704403 | AG142: 179.1 | AH142: 104.0069686 | AI142: 199.2 | AJ142: 100.8097166 | AK142: 147.9 | AL142: 105.4921541 | AM142: 250.6 | AN142: 113.4963768 | AO142: 235.3 | AP142: 113.5617761 | AQ142: 189.9 | AR142: 104 | AS142: 215.6 | AT142: 90.24696526
A143: 22 | B143: Spektro | C143: 185.9 | D143: 93.27646764 | E143: 176.8 | F143: 111.1949686 | G143: 173.1 | H143: 98.40818647 | I143: 193.4 | J143: 94.71106758 | K143: 182.9 | L143: 104.2759407 | M143: 183.6 | N143: 100.4926108 | O143: 187.3 | P143: 86.59269533 | Q143: 190.4 | R143: 99.94750656 | S143: 198.4 | T143: 100 | U143: 205.7 | V143: 109.2986185 | W143: 157.7 | X143: 80.83034341 | Y143: 176.5 | Z143: 103.4583822 | AA143: 178.3 | AB143: 93.00991132 | AC143: - | AD143: - | AE143: 110.1 | AF143: 86.55660377 | AG143: 158.1 | AH143: 91.81184669 | AI143: 192.5 | AJ143: 97.41902834 | AK143: 147 | AL143: 104.850214 | AM143: 210.1 | AN143: 95.15398551 | AO143: 182.8 | AP143: 88.22393822 | AQ143: 178.4 | AR143: 97 | AS143: 205.5 | AT143: 86.01925492
A144: 23 | B144: Sunbird | C144: 182.9 | D144: 91.7711992 | E144: 153.2 | F144: 96.35220126 | G144: 161.2 | H144: 91.64297897 | I144: 197.4 | J144: 96.66993144 | K144: 164.1 | L144: 93.55758267 | M144: 152.6 | N144: 83.52490421 | O144: 194.4 | P144: 89.87517337 | Q144: 187.9 | R144: 98.6351706 | S144: 194.2 | T144: 97.88306452 | U144: 180.9 | V144: 96.12114772 | W144: 168.3 | X144: 86.26345464 | Y144: 145.5 | Z144: 85.28722157 | AA144: 141.9 | AB144: 74.02190923 | AC144: - | AD144: - | AE144: 126.8 | AF144: 99.68553459 | AG144: 163.4 | AH144: 94.88966318 | AI144: 177.4 | AJ144: 89.77732794 | AK144: 117.5 | AL144: 83.80884451 | AM144: 207.9 | AN144: 94.1576087 | AO144: 191.1 | AP144: 92.22972973 | AQ144: 168.9 | AR144: 92 | AS144: 238.7 | AT144: 99.91628296
A145: 24 | B145: Tabarro | C145: 160.1 | D145: 80.33115906 | E145: 142.1 | F145: 89.37106918 | G145: 150.9 | H145: 85.78737919 | I145: 194.1 | J145: 95.05386876 | K145: 141.5 | L145: 80.672748 | M145: 165.3 | N145: 90.47619048 | O145: 192.3 | P145: 88.90429958 | Q145: 176.5 | R145: 92.65091864 | S145: 209 | T145: 105.3427419 | U145: 189.1 | V145: 100.4782147 | W145: 153.1 | X145: 78.47257817 | Y145: 153.3 | Z145: 89.85932005 | AA145: 136.1 | AB145: 70.99634846 | AC145: - | AD145: - | AE145: 120 | AF145: 94.33962264 | AG145: 182.9 | AH145: 106.213705 | AI145: 189.9 | AJ145: 96.10323887 | AK145: 133.1 | AL145: 94.93580599 | AM145: 202.7 | AN145: 91.80253623 | AO145: 177.5 | AP145: 85.66602317 | AQ145: 166.8 | AR145: 91 | AS145: 194.7 | AT145: 81.49853495
A146: 25 | B146: Blandeen * | C146: 205.1 | D146: 102.9101856 | E146: 145.7 | F146: 91.63522013 | G146: 177.2 | H146: 100.7390563 | I146: 201.6 | J146: 98.72673849 | K146: 179 | L146: 102.0524515 | M146: 196.7 | N146: 107.6628352 | O146: 218.7 | P146: 101.10957 | Q146: 192.1 | R146: 100.839895 | S146: 174.3 | T146: 87.85282258 | U146: 229.8 | V146: 122.1041445 | W146: 202.7 | X146: 103.8954382 | Y146: 178.8 | Z146: 104.8065651 | AA146: 209 | AB146: 109.0245175 | AC146: - | AD146: - | AE146: 129.2 | AF146: 101.572327 | AG146: 175.3 | AH146: 101.8002323 | AI146: 218.7 | AJ146: 110.6781377 | AK146: 149.1 | AL146: 106.3480742 | AM146: 200.1 | AN146: 90.625 | AO146: 218.6 | AP146: 105.5019305 | AQ146: 189.6 | AR146: 103 | AS146: 252.2 | AT146: 105.5671829
A147: 26 | B147: Monster * | C147: 179 | D147: 89.81435023 | E147: 151.9 | F147: 95.53459119 | G147: 185.2 | H147: 105.2870949 | I147: 217.6 | J147: 106.5621939 | K147: 181.9 | L147: 103.7058153 | M147: 183.6 | N147: 100.4926108 | O147: 208.9 | P147: 96.57882571 | Q147: 199.9 | R147: 104.9343832 | S147: 214.4 | T147: 108.0645161 | U147: 187 | V147: 99.36238045 | W147: 156.6 | X147: 80.26652998 | Y147: 163.7 | Z147: 95.95545135 | AA147: 192.9 | AB147: 100.6259781 | AC147: - | AD147: - | AE147: 130.8 | AF147: 102.8301887 | AG147: 183.1 | AH147: 106.329849 | AI147: 191.9 | AJ147: 97.11538462 | AK147: 130.4 | AL147: 93.00998573 | AM147: 206.6 | AN147: 93.56884058 | AO147: 199.9 | AP147: 96.47683398 | AQ147: 182.4 | AR147: 99 | AS147: 258.7 | AT147: 108.2879866
B149: NIR dt/ha | C149: 14 | E149: 10.8 | G149: 11.1 | I149: 4.6 | K149: 11.4 | M149: 8.8 | O149: 19.6 | Q149: 12.8 | S149: 22.5 | U149: 10.9 | W149: 13.6 | Y149: 8.5 | AA149: 21 | AE149: 16 | AG149: 11.8 | AK149: 10.6 | AM149: 21.8 | AO149: 10.4 | AQ149: 10 | AS149: 35.2
B150: NIR, % | C150: 7.2 | E150: 6.9 | G150: 6.6 | I150: 2.2 | K150: 6.2 | M150: 4.9 | O150: 9.4 | Q150: 6.7 | S150: 12.5 | U150: 5.9 | W150: 8.4 | Y150: 5 | AA150: 10.9 | AE150: 13 | AG150: 7.2 | AK150: 7.6 | AM150: 9.9 | AO150: 5.5 | AQ150: 5.5 | AS150: 15
A153: Nie włączono do syntezy: Słupia- dyskwalifikacja polowa, Masłowice – dyskwalifikacja statystyczna
A154: Wzorzec tworzą średnie wyniki odmian grupie.
A155: Lp. 25-26 - odmiany z katalogu wspólnotowego - CCA (nie wpisane do Krajowego rejestru)
A159: Tabela 6
A160: Kukurydza na kiszonkę – grupa średniowczesna. Doświadczenia porejestrowe 2025. Zawartość suchej masy w plonie ogólnym, %
A162: Stacje/Odmiany | C162: Chrząstowo | D162: % wzorca | E162: Cicibór | F162: % wzorca | G162: Głębokie | H162: % wzorca | I162: Głodowo | J162: % wzorca | K162: Kawęczyn | L162: % wzorca | M162: Kościelna Wieś | N162: % wzorca | O162: Krzyżewo | P162: % wzorca | Q162: Łyski | R162: % wzorca | S162: Marianowo | T162: % wzorca | U162: Radostowo | V162: % wzorca | W162: Radzików | X162: % wzorca | Y162: Rarwino | Z162: % wzorca | AA162: Rychliki | AB162: % wzorca | AC162: Słupia | AD162: % wzorca | AE162: Smolice | AF162: % wzorca | AG162: Sulejów | AH162: % wzorca | AI162: Śrem | AJ162: % wzorca | AK162: Tomaszów Bol. | AL162: % wzorca | AM162: Węgrzce | AN162: % wzorca | AO162: Wrócikowo | AP162: % wzorca | AQ162: średnia | AR162: % Wzorca | AS162: Masłowice | AT162: % wzorca
A164: wzorzec: | C164: 32.8 | E164: 35.3 | G164: 30.9 | I164: 31.9 | K164: 36 | M164: 30.2 | O164: 34.5 | Q164: 36.7 | S164: 33 | U164: 30.2 | W164: 41 | Y164: 33.4 | AA164: 32.2 | AE164: 31.5 | AG164: 32 | AI164: 31.5 | AK164: 31.3 | AM164: 32.1 | AO164: 29.1 | AQ164: 32.9 | AS164: 34.9
A166: 1 | B166: Agrolupo | C166: 34 | D166: =C166*100/$C$164 -> 103.6585366 | E166: 47.9 | F166: =E166*100/$E$164 -> 135.694051 | G166: 37.6 | H166: =G166*100/$G$164 -> 121.6828479 | I166: 32.5 | J166: =I166*100/$I$164 -> 101.8808777 | K166: 41.8 | L166: =K166*100/$K$164 -> 116.1111111 | M166: 29 | N166: =M166*100/$M$164 -> 96.02649007 | O166: 40.3 | P166: =O166*100/$O$164 -> 116.8115942 | Q166: 40 | R166: =Q166*100/$Q$164 -> 108.9918256 | S166: 38.4 | T166: =S166*100/$S$164 -> 116.3636364 | U166: 30.2 | V166: =U166*100/$U$164 -> 100 | W166: 53.1 | X166: =W166*100/$W$164 -> 129.5121951 | Y166: 32.3 | Z166: =Y166*100/$Y$164 -> 96.70658683 | AA166: 31.9 | AB166: =AA166*100/$AA$164 -> 99.06832298 | AC166: - | AD166: - | AE166: 31.5 | AF166: =AE166*100/$AE$164 -> 100 | AG166: 33.4 | AH166: =AG166*100/$AG$164 -> 104.375 | AI166: 33 | AJ166: =AI166*100/$AI$164 -> 104.7619048 | AK166: 32.7 | AL166: =AK166*100/$AK$164 -> 104.4728435 | AM166: 32.8 | AN166: =AM166*100/$AM$164 -> 102.1806854 | AO166: 32.5 | AP166: =AO166*100/$AO$164 -> 111.6838488 | AQ166: 36 | AR166: 109 | AS166: 31 | AT166: =AS166*100/$AS$164 -> 88.8252149
A167: 2 | B167: Farmpower | C167: 33.5 | D167: =C167*100/$C$164 -> 102.1341463 | E167: 31.7 | F167: =E167*100/$E$164 -> 89.80169972 | G167: 30.2 | H167: =G167*100/$G$164 -> 97.73462783 | I167: 31.5 | J167: =I167*100/$I$164 -> 98.7460815 | K167: 35 | L167: =K167*100/$K$164 -> 97.22222222 | M167: 31.4 | N167: =M167*100/$M$164 -> 103.9735099 | O167: 34.6 | P167: =O167*100/$O$164 -> 100.2898551 | Q167: 34.6 | R167: =Q167*100/$Q$164 -> 94.27792916 | S167: 31.3 | T167: =S167*100/$S$164 -> 94.84848485 | U167: 27.7 | V167: 91.7218543 | W167: 37.6 | X167: 91.70731707 | Y167: 29.3 | Z167: 87.7245509 | AA167: 31.9 | AB167: 99.06832298 | AC167: - | AD167: - | AE167: 29.5 | AF167: 93.65079365 | AG167: 31.3 | AH167: 97.8125 | AI167: 30.6 | AJ167: 97.14285714 | AK167: 30 | AL167: 95.84664537 | AM167: 31.1 | AN167: 96.8847352 | AO167: 31.1 | AP167: 106.8728522 | AQ167: 31.8 | AR167: 96 | AS167: 36.1 | AT167: 103.4383954
A168: 3 | B168: Inception | C168: 32.9 | D168: 100.304878 | E168: 42.7 | F168: 120.9631728 | G168: 30.9 | H168: 100 | I168: 30.9 | J168: 96.86520376 | K168: 36 | L168: 100 | M168: 34.1 | N168: 112.9139073 | O168: 32.4 | P168: 93.91304348 | Q168: 36.4 | R168: 99.18256131 | S168: 33.1 | T168: 100.3030303 | U168: 29.7 | V168: 98.34437086 | W168: 37.2 | X168: 90.73170732 | Y168: 32.2 | Z168: 96.40718563 | AA168: 32.9 | AB168: 102.173913 | AC168: - | AD168: - | AE168: 29.4 | AF168: 93.33333333 | AG168: 32.2 | AH168: 100.625 | AI168: 30.8 | AJ168: 97.77777778 | AK168: 30.9 | AL168: 98.72204473 | AM168: 30.1 | AN168: 93.7694704 | AO168: 28.8 | AP168: 98.96907216 | AQ168: 32.8 | AR168: 100 | AS168: 34.7 | AT168: 99.4269341
A169: 4 | B169: Inspiro | C169: 35.6 | D169: 108.5365854 | E169: 36.5 | F169: 103.3994334 | G169: 31.3 | H169: 101.2944984 | I169: 30.1 | J169: 94.35736677 | K169: 34.1 | L169: 94.72222222 | M169: 30.8 | N169: 101.986755 | O169: 33.1 | P169: 95.94202899 | Q169: 39 | R169: 106.26703 | S169: 33.2 | T169: 100.6060606 | U169: 28.8 | V169: 95.36423841 | W169: 37.8 | X169: 92.19512195 | Y169: 30.6 | Z169: 91.61676647 | AA169: 32.7 | AB169: 101.552795 | AC169: - | AD169: - | AE169: 31.5 | AF169: 100 | AG169: 33.4 | AH169: 104.375 | AI169: 32.6 | AJ169: 103.4920635 | AK169: 33.3 | AL169: 106.3897764 | AM169: 31.4 | AN169: 97.81931464 | AO169: 31.9 | AP169: 109.6219931 | AQ169: 33 | AR169: 100 | AS169: 36.1 | AT169: 103.4383954
A170: 5 | B170: KWS Lupollino | C170: 35.2 | D170: 107.3170732 | E170: 29.1 | F170: 82.43626062 | G170: 36.6 | H170: 118.4466019 | I170: 34.3 | J170: 107.523511 | K170: 38.1 | L170: 105.8333333 | M170: 32.8 | N170: 108.6092715 | O170: 37.1 | P170: 107.5362319 | Q170: 35.6 | R170: 97.0027248 | S170: 35.6 | T170: 107.8787879 | U170: 30.8 | V170: 101.986755 | W170: 39.4 | X170: 96.09756098 | Y170: 34.8 | Z170: 104.1916168 | AA170: 34.2 | AB170: 106.2111801 | AC170: - | AD170: - | AE170: 33.2 | AF170: 105.3968254 | AG170: 31.7 | AH170: 99.0625 | AI170: 34.4 | AJ170: 109.2063492 | AK170: 30.4 | AL170: 97.12460064 | AM170: 33.4 | AN170: 104.0498442 | AO170: 29.1 | AP170: 100 | AQ170: 34 | AR170: 103 | AS170: 36.3 | AT170: 104.0114613
A171: 6 | B171: MHR Mercado | C171: 32 | D171: 97.56097561 | E171: 33.8 | F171: 95.75070822 | G171: 28.8 | H171: 93.2038835 | I171: 30.4 | J171: 95.29780564 | K171: 37.3 | L171: 103.6111111 | M171: 28.7 | N171: 95.03311258 | O171: 34.6 | P171: 100.2898551 | Q171: 35.8 | R171: 97.54768392 | S171: 31.7 | T171: 96.06060606 | U171: 27.7 | V171: 91.7218543 | W171: 39.7 | X171: 96.82926829 | Y171: 38.8 | Z171: 116.1676647 | AA171: 30.1 | AB171: 93.47826087 | AC171: - | AD171: - | AE171: 30.1 | AF171: 95.55555556 | AG171: 32.1 | AH171: 100.3125 | AI171: 29.5 | AJ171: 93.65079365 | AK171: 30.9 | AL171: 98.72204473 | AM171: 31.3 | AN171: 97.50778816 | AO171: 26.1 | AP171: 89.69072165 | AQ171: 32.1 | AR171: 97 | AS171: 33 | AT171: 94.55587393
A172: 7 | B172: MHR Vamos | C172: 29.5 | D172: 89.93902439 | E172: 31.3 | F172: 88.66855524 | G172: 28.7 | H172: 92.8802589 | I172: 28.4 | J172: 89.02821317 | K172: 34 | L172: 94.44444444 | M172: 29 | N172: 96.02649007 | O172: 31.1 | P172: 90.14492754 | Q172: 32.4 | R172: 88.28337875 | S172: 32.1 | T172: 97.27272727 | U172: 29.3 | V172: 97.01986755 | W172: 40 | X172: 97.56097561 | Y172: 36.9 | Z172: 110.4790419 | AA172: 31.9 | AB172: 99.06832298 | AC172: - | AD172: - | AE172: 31.1 | AF172: 98.73015873 | AG172: 31.7 | AH172: 99.0625 | AI172: 28.8 | AJ172: 91.42857143 | AK172: 25.5 | AL172: 81.46964856 | AM172: 31.6 | AN172: 98.4423676 | AO172: 26.9 | AP172: 92.43986254 | AQ172: 31 | AR172: 94 | AS172: 37.5 | AT172: 107.4498567
A173: 8 | B173: P8782 | C173: 32.5 | D173: 99.08536585 | E173: 36.7 | F173: 103.9660057 | G173: 28.9 | H173: 93.52750809 | I173: 30.7 | J173: 96.23824451 | K173: 42 | L173: 116.6666667 | M173: 27.3 | N173: 90.39735099 | O173: 35.2 | P173: 102.0289855 | Q173: 33.8 | R173: 92.09809264 | S173: 34.9 | T173: 105.7575758 | U173: 30.9 | V173: 102.3178808 | W173: 42.8 | X173: 104.3902439 | Y173: 30.3 | Z173: 90.71856287 | AA173: 33.3 | AB173: 103.4161491 | AC173: - | AD173: - | AE173: 29.6 | AF173: 93.96825397 | AG173: 32.2 | AH173: 100.625 | AI173: 30.4 | AJ173: 96.50793651 | AK173: 30.4 | AL173: 97.12460064 | AM173: 33.1 | AN173: 103.1152648 | AO173: 30 | AP173: 103.0927835 | AQ173: 32.9 | AR173: 100 | AS173: 37.7 | AT173: 108.0229226
A174: 9 | B174: RGT Deixxel | C174: 35 | D174: 106.7073171 | E174: 36.2 | F174: 102.5495751 | G174: 32.8 | H174: 106.1488673 | I174: 34.3 | J174: 107.523511 | K174: 33.9 | L174: 94.16666667 | M174: 30.3 | N174: 100.3311258 | O174: 34.3 | P174: 99.42028986 | Q174: 38.2 | R174: 104.0871935 | S174: 34.8 | T174: 105.4545455 | U174: 33 | V174: 109.2715232 | W174: 41.1 | X174: 100.2439024 | Y174: 38 | Z174: 113.7724551 | AA174: 34.2 | AB174: 106.2111801 | AC174: - | AD174: - | AE174: 32.6 | AF174: 103.4920635 | AG174: 31 | AH174: 96.875 | AI174: 33.8 | AJ174: 107.3015873 | AK174: 36.2 | AL174: 115.6549521 | AM174: 32.4 | AN174: 100.9345794 | AO174: 29 | AP174: 99.65635739 | AQ174: 34.3 | AR174: 104 | AS174: 37.6 | AT174: 107.7363897
A175: 10 | B175: RGT Lanxx | C175: 32.4 | D175: 98.7804878 | E175: 34.9 | F175: 98.86685552 | G175: 32.2 | H175: 104.2071197 | I175: 32.8 | J175: 102.8213166 | K175: 34.1 | L175: 94.72222222 | M175: 32.6 | N175: 107.9470199 | O175: 36.2 | P175: 104.9275362 | Q175: 39.4 | R175: 107.3569482 | S175: 34.4 | T175: 104.2424242 | U175: 32.5 | V175: 107.615894 | W175: 44 | X175: 107.3170732 | Y175: 36.4 | Z175: 108.9820359 | AA175: 34.5 | AB175: 107.1428571 | AC175: - | AD175: - | AE175: 29.5 | AF175: 93.65079365 | AG175: 33.3 | AH175: 104.0625 | AI175: 32.8 | AJ175: 104.1269841 | AK175: 38.6 | AL175: 123.3226837 | AM175: 31.2 | AN175: 97.19626168 | AO175: 30.4 | AP175: 104.467354 | AQ175: 34.3 | AR175: 104 | AS175: 36.8 | AT175: 105.4441261
A176: 11 | B176: RGT Oddaxx | C176: 34.2 | D176: 104.2682927 | E176: 35.9 | F176: 101.6997167 | G176: 32.5 | H176: 105.1779935 | I176: 35.6 | J176: 111.5987461 | K176: 35.7 | L176: 99.16666667 | M176: 29.2 | N176: 96.68874172 | O176: 37.8 | P176: 109.5652174 | Q176: 37.6 | R176: 102.4523161 | S176: 31.6 | T176: 95.75757576 | U176: 32.6 | V176: 107.9470199 | W176: 43.1 | X176: 105.1219512 | Y176: 36.2 | Z176: 108.3832335 | AA176: 32.1 | AB176: 99.68944099 | AC176: - | AD176: - | AE176: 32.9 | AF176: 104.4444444 | AG176: 32.5 | AH176: 101.5625 | AI176: 32.3 | AJ176: 102.5396825 | AK176: 31.6 | AL176: 100.9584665 | AM176: 33.1 | AN176: 103.1152648 | AO176: 27.1 | AP176: 93.12714777 | AQ176: 33.9 | AR176: 103 | AS176: 32.2 | AT176: 92.26361032
A177: 12 | B177: SM Ina | C177: 30.4 | D177: 92.68292683 | E177: 32.8 | F177: 92.91784703 | G177: 29.6 | H177: 95.79288026 | I177: 32 | J177: 100.3134796 | K177: 33.5 | L177: 93.05555556 | M177: 33.3 | N177: 110.2649007 | O177: 32.4 | P177: 93.91304348 | Q177: 31.4 | R177: 85.55858311 | S177: 30.4 | T177: 92.12121212 | U177: 26.3 | V177: 87.08609272 | W177: 41 | X177: 100 | Y177: 31.6 | Z177: 94.61077844 | AA177: 30 | AB177: 93.16770186 | AC177: - | AD177: - | AE177: 28.4 | AF177: 90.15873016 | AG177: 31.7 | AH177: 99.0625 | AI177: 30.1 | AJ177: 95.55555556 | AK177: 29.2 | AL177: 93.29073482 | AM177: 31.6 | AN177: 98.4423676 | AO177: 27.4 | AP177: 94.1580756 | AQ177: 31.2 | AR177: 95 | AS177: 31.5 | AT177: 90.25787966
A178: 13 | B178: SM Jasper | C178: 36.8 | D178: 112.195122 | E178: 36.1 | F178: 102.266289 | G178: 30.7 | H178: 99.35275081 | I178: 30.3 | J178: 94.98432602 | K178: 31.5 | L178: 87.5 | M178: 31.4 | N178: 103.9735099 | O178: 34.4 | P178: 99.71014493 | Q178: 37.8 | R178: 102.9972752 | S178: 36 | T178: 109.0909091 | U178: 26.3 | V178: 87.08609272 | W178: 46.7 | X178: 113.902439 | Y178: 32.1 | Z178: 96.10778443 | AA178: 30.9 | AB178: 95.96273292 | AC178: - | AD178: - | AE178: 32.7 | AF178: 103.8095238 | AG178: 32.5 | AH178: 101.5625 | AI178: 32.3 | AJ178: 102.5396825 | AK178: 34.4 | AL178: 109.9041534 | AM178: 31.9 | AN178: 99.37694704 | AO178: 29.6 | AP178: 101.7182131 | AQ178: 33.4 | AR178: 101 | AS178: 35.5 | AT178: 101.7191977
A179: 14 | B179: SM Nida | C179: 34.4 | D179: 104.8780488 | E179: 36.3 | F179: 102.8328612 | G179: 32.4 | H179: 104.8543689 | I179: 31.6 | J179: 99.05956113 | K179: 37.8 | L179: 105 | M179: 29.5 | N179: 97.68211921 | O179: 40.1 | P179: 116.2318841 | Q179: 34.4 | R179: 93.73297003 | S179: 33 | T179: 100 | U179: 30.3 | V179: 100.3311258 | W179: 42.1 | X179: 102.6829268 | Y179: 30.7 | Z179: 91.91616766 | AA179: 32 | AB179: 99.37888199 | AC179: - | AD179: - | AE179: 33.8 | AF179: 107.3015873 | AG179: 33.1 | AH179: 103.4375 | AI179: 32.4 | AJ179: 102.8571429 | AK179: 30.7 | AL179: 98.08306709 | AM179: 32.1 | AN179: 100 | AO179: 30.5 | AP179: 104.8109966 | AQ179: 33.5 | AR179: 102 | AS179: 32.1 | AT179: 91.97707736
A180: 15 | B180: SM Perseus | C180: 33.9 | D180: 103.3536585 | E180: 33.9 | F180: 96.03399433 | G180: 31 | H180: 100.3236246 | I180: 33.9 | J180: 106.2695925 | K180: 35.7 | L180: 99.16666667 | M180: 29.3 | N180: 97.01986755 | O180: 33.6 | P180: 97.39130435 | Q180: 37.6 | R180: 102.4523161 | S180: 30.6 | T180: 92.72727273 | U180: 33 | V180: 109.2715232 | W180: 40.4 | X180: 98.53658537 | Y180: 34.8 | Z180: 104.1916168 | AA180: 32.6 | AB180: 101.242236 | AC180: - | AD180: - | AE180: 32.1 | AF180: 101.9047619 | AG180: 31.6 | AH180: 98.75 | AI180: 32.1 | AJ180: 101.9047619 | AK180: 31.4 | AL180: 100.3194888 | AM180: 32.5 | AN180: 101.2461059 | AO180: 31.1 | AP180: 106.8728522 | AQ180: 33.2 | AR180: 101 | AS180: 32.5 | AT180: 93.12320917
A181: 16 | B181: SM Rambo | C181: 33.8 | D181: 103.0487805 | E181: 30.8 | F181: 87.25212465 | G181: 27.8 | H181: 89.96763754 | I181: 30.2 | J181: 94.67084639 | K181: 37 | L181: 102.7777778 | M181: 31.1 | N181: 102.9801325 | O181: 32.2 | P181: 93.33333333 | Q181: 37.4 | R181: 101.9073569 | S181: 28.3 | T181: 85.75757576 | U181: 26.1 | V181: 86.42384106 | W181: 35.7 | X181: 87.07317073 | Y181: 33.2 | Z181: 99.4011976 | AA181: 29.7 | AB181: 92.23602484 | AC181: - | AD181: - | AE181: 31.2 | AF181: 99.04761905 | AG181: 32.3 | AH181: 100.9375 | AI181: 30.3 | AJ181: 96.19047619 | AK181: 29.5 | AL181: 94.24920128 | AM181: 32.3 | AN181: 100.623053 | AO181: 28.7 | AP181: 98.62542955 | AQ181: 31.4 | AR181: 95 | AS181: 37.3 | AT181: 106.8767908
A182: 17 | B182: SM Rokita | C182: 32.5 | D182: 99.08536585 | E182: 32 | F182: 90.65155807 | G182: 29.7 | H182: 96.11650485 | I182: 31.2 | J182: 97.80564263 | K182: 35.5 | L182: 98.61111111 | M182: 27.3 | N182: 90.39735099 | O182: 35.2 | P182: 102.0289855 | Q182: 37 | R182: 100.8174387 | S182: 31.1 | T182: 94.24242424 | U182: 31.1 | V182: 102.9801325 | W182: 35.5 | X182: 86.58536585 | Y182: 37.7 | Z182: 112.8742515 | AA182: 35.8 | AB182: 111.1801242 | AC182: - | AD182: - | AE182: 31.1 | AF182: 98.73015873 | AG182: 30.1 | AH182: 94.0625 | AI182: 29.9 | AJ182: 94.92063492 | AK182: 31.4 | AL182: 100.3194888 | AM182: 32.8 | AN182: 102.1806854 | AO182: 29.1 | AP182: 100 | AQ182: 32.4 | AR182: 98 | AS182: 35.8 | AT182: 102.5787966
A183: 18 | B183: SM Varsovia | C183: 30.7 | D183: 93.59756098 | E183: 36.8 | F183: 104.2492918 | G183: 30.8 | H183: 99.6763754 | I183: 33.5 | J183: 105.015674 | K183: 37.4 | L183: 103.8888889 | M183: 28.8 | N183: 95.36423841 | O183: 35.7 | P183: 103.4782609 | Q183: 36.6 | R183: 99.72752044 | S183: 35 | T183: 106.0606061 | U183: 32.4 | V183: 107.2847682 | W183: 41.2 | X183: 100.4878049 | Y183: 31.4 | Z183: 94.01197605 | AA183: 33.2 | AB183: 103.1055901 | AC183: - | AD183: - | AE183: 33.1 | AF183: 105.0793651 | AG183: 31.5 | AH183: 98.4375 | AI183: 32.6 | AJ183: 103.4920635 | AK183: 29.3 | AL183: 93.61022364 | AM183: 33 | AN183: 102.8037383 | AO183: 27 | AP183: 92.78350515 | AQ183: 33.2 | AR183: 101 | AS183: 36.1 | AT183: 103.4383954
A184: 19 | B184: SM Zadra | C184: 32.1 | D184: 97.86585366 | E184: 32.7 | F184: 92.63456091 | G184: 29.8 | H184: 96.44012945 | I184: 30.1 | J184: 94.35736677 | K184: 36.4 | L184: 101.1111111 | M184: 30.6 | N184: 101.3245033 | O184: 32.6 | P184: 94.49275362 | Q184: 33.8 | R184: 92.09809264 | S184: 32 | T184: 96.96969697 | U184: 33 | V184: 109.2715232 | W184: 35.8 | X184: 87.31707317 | Y184: 39.8 | Z184: 119.1616766 | AA184: 31.4 | AB184: 97.51552795 | AC184: - | AD184: - | AE184: 31.1 | AF184: 98.73015873 | AG184: 33.1 | AH184: 103.4375 | AI184: 29.7 | AJ184: 94.28571429 | AK184: 29.5 | AL184: 94.24920128 | AM184: 31.4 | AN184: 97.81931464 | AO184: 26.3 | AP184: 90.37800687 | AQ184: 32.2 | AR184: 98 | AS184: 34.8 | AT184: 99.71346705
A185: 20 | B185: SM Zerka | C185: 33.4 | D185: 101.8292683 | E185: 35 | F185: 99.15014164 | G185: 29.2 | H185: 94.49838188 | I185: 31.4 | J185: 98.43260188 | K185: 38.6 | L185: 107.2222222 | M185: 29.1 | N185: 96.35761589 | O185: 36.4 | P185: 105.5072464 | Q185: 37 | R185: 100.8174387 | S185: 33.5 | T185: 101.5151515 | U185: 30.4 | V185: 100.6622517 | W185: 43.9 | X185: 107.0731707 | Y185: 33.8 | Z185: 101.1976048 | AA185: 34.5 | AB185: 107.1428571 | AC185: - | AD185: - | AE185: 29 | AF185: 92.06349206 | AG185: 30.6 | AH185: 95.625 | AI185: 30 | AJ185: 95.23809524 | AK185: 35 | AL185: 111.8210863 | AM185: 33.1 | AN185: 103.1152648 | AO185: 26.2 | AP185: 90.03436426 | AQ185: 33.2 | AR185: 101 | AS185: 33.2 | AT185: 95.12893983
A186: 21 | B186: SM Zulu | C186: 31.5 | D186: 96.03658537 | E186: 42.1 | F186: 119.2634561 | G186: 29.8 | H186: 96.44012945 | I186: 31.4 | J186: 98.43260188 | K186: 38.1 | L186: 105.8333333 | M186: 29.3 | N186: 97.01986755 | O186: 33.2 | P186: 96.23188406 | Q186: 36.6 | R186: 99.72752044 | S186: 29.2 | T186: 88.48484848 | U186: 29 | V186: 96.02649007 | W186: 42.1 | X186: 102.6829268 | Y186: 32.9 | Z186: 98.50299401 | AA186: 30.9 | AB186: 95.96273292 | AC186: - | AD186: - | AE186: 33.4 | AF186: 106.031746 | AG186: 30.1 | AH186: 94.0625 | AI186: 30.6 | AJ186: 97.14285714 | AK186: 31.2 | AL186: 99.68051118 | AM186: 32.5 | AN186: 101.2461059 | AO186: 30.4 | AP186: 104.467354 | AQ186: 32.9 | AR186: 100 | AS186: 34.2 | AT186: 97.99426934
A187: 22 | B187: Spektro | C187: 29.7 | D187: 90.54878049 | E187: 41.6 | F187: 117.8470255 | G187: 31 | H187: 100.3236246 | I187: 31.9 | J187: 100 | K187: 32.3 | L187: 89.72222222 | M187: 31.5 | N187: 104.3046358 | O187: 30.8 | P187: 89.27536232 | Q187: 38.2 | R187: 104.0871935 | S187: 33.4 | T187: 101.2121212 | U187: 28 | V187: 92.71523179 | W187: 40.2 | X187: 98.04878049 | Y187: 32.3 | Z187: 96.70658683 | AA187: 31.7 | AB187: 98.44720497 | AC187: - | AD187: - | AE187: 32.1 | AF187: 101.9047619 | AG187: 32.3 | AH187: 100.9375 | AI187: 31.3 | AJ187: 99.36507937 | AK187: 33.2 | AL187: 106.0702875 | AM187: 32.2 | AN187: 100.3115265 | AO187: 29.7 | AP187: 102.0618557 | AQ187: 32.8 | AR187: 100 | AS187: 35.7 | AT187: 102.2922636
A188: 23 | B188: Sunbird | C188: 32.9 | D188: 100.304878 | E188: 34.1 | F188: 96.60056657 | G188: 32.5 | H188: 105.1779935 | I188: 33.6 | J188: 105.3291536 | K188: 36.2 | L188: 100.5555556 | M188: 27.9 | N188: 92.38410596 | O188: 33.2 | P188: 96.23188406 | Q188: 37.6 | R188: 102.4523161 | S188: 36.3 | T188: 110 | U188: 31.7 | V188: 104.9668874 | W188: 44.3 | X188: 108.0487805 | Y188: 32.9 | Z188: 98.50299401 | AA188: 29 | AB188: 90.0621118 | AC188: - | AD188: - | AE188: 33 | AF188: 104.7619048 | AG188: 31 | AH188: 96.875 | AI188: 31.6 | AJ188: 100.3174603 | AK188: 29.3 | AL188: 93.61022364 | AM188: 31.8 | AN188: 99.06542056 | AO188: 30.7 | AP188: 105.4982818 | AQ188: 33.1 | AR188: 101 | AS188: 35.3 | AT188: 101.1461318
A189: 24 | B189: Tabarro | C189: 29.7 | D189: 90.54878049 | E189: 35.7 | F189: 101.1331445 | G189: 29.9 | H189: 96.76375405 | I189: 32.3 | J189: 101.2539185 | K189: 34.5 | L189: 95.83333333 | M189: 30.2 | N189: 100 | O189: 34.8 | P189: 100.8695652 | Q189: 38 | R189: 103.5422343 | S189: 35.6 | T189: 107.8787879 | U189: 34.2 | V189: 113.2450331 | W189: 43.3 | X189: 105.6097561 | Y189: 28.2 | Z189: 84.43113772 | AA189: 28.7 | AB189: 89.13043478 | AC189: - | AD189: - | AE189: 31.4 | AF189: 99.68253968 | AG189: 33.4 | AH189: 104.375 | AI189: 33.9 | AJ189: 107.6190476 | AK189: 29.1 | AL189: 92.97124601 | AM189: 32 | AN189: 99.68847352 | AO189: 31.7 | AP189: 108.9347079 | AQ189: 33 | AR189: 100 | AS189: 35 | AT189: 100.286533
A190: 25 | B190: Blandeen * | C190: 33 | D190: 100.6097561 | E190: 28.8 | F190: 81.58640227 | G190: 29.4 | H190: 95.14563107 | I190: 31.7 | J190: 99.37304075 | K190: 36 | L190: 100 | M190: 30.2 | N190: 100 | O190: 34.2 | P190: 99.13043478 | Q190: 38 | R190: 103.5422343 | S190: 30.8 | T190: 93.33333333 | U190: 29.5 | V190: 97.68211921 | W190: 41.1 | X190: 100.2439024 | Y190: 32.2 | Z190: 96.40718563 | AA190: 34.8 | AB190: 108.0745342 | AC190: - | AD190: - | AE190: 32.5 | AF190: 103.1746032 | AG190: 33.5 | AH190: 104.6875 | AI190: 31.8 | AJ190: 100.952381 | AK190: 30.7 | AL190: 98.08306709 | AM190: 31 | AN190: 96.57320872 | AO190: 29.6 | AP190: 101.7182131 | AQ190: 32.6 | AR190: 99 | AS190: 34.5 | AT190: 98.85386819
A191: 26 | B191: Monster * | C191: 30.5 | D191: 92.98780488 | E191: 33.3 | F191: 94.33427762 | G191: 30.1 | H191: 97.41100324 | I191: 33 | J191: 103.4482759 | K191: 33.9 | L191: 94.16666667 | M191: 30.5 | N191: 100.9933775 | O191: 32.6 | P191: 94.49275362 | Q191: 39.2 | R191: 106.8119891 | S191: 33.2 | T191: 100.6060606 | U191: 29.5 | V191: 97.68211921 | W191: 38.1 | X191: 92.92682927 | Y191: 30.2 | Z191: 90.41916168 | AA191: 31 | AB191: 96.27329193 | AC191: - | AD191: - | AE191: 32.9 | AF191: 104.4444444 | AG191: 31.5 | AH191: 98.4375 | AI191: 32.1 | AJ191: 101.9047619 | AK191: 30 | AL191: 95.84664537 | AM191: 32.2 | AN191: 100.3115265 | AO191: 26.3 | AP191: 90.37800687 | AQ191: 32.1 | AR191: 97 | AS191: 35.6 | AT191: 102.0057307
A195: Nie włączono do syntezy: Słupia - dyskwalifikacja polowa, Masłowice – dyskwalifikacja statystyczna
A196: Wzorzec tworzą średnie wyniki odmian grupie.
A197: Lp. 25-26 - odmiany z katalogu wspólnotowego - CCA (nie wpisane do Krajowego rejestru)
A304: Lp. 13 - odmiana z katalogu wspólnotowego - CCA (nie wpisane do Krajowego rejestru)
